{"text_format":"1","workbook":"xlsx","n_sheets":14,"sheets":["Plan0_Definições","Plan 1 REND ORIENT Definições ","Plan1.1 ORIENTAÇÕES PREENCHIMEN","Plan2 1.DADOS,2.OBJ e 2.1.Vigên","Plan3 2.2. QUADRO RESUMO","Plan4 2.3. OPERAÇÕES","Plan5 3. JUSTIFIC. e 4.BENEFIC.","Plan6 5.MET_FAS_ETA_CRON_6.METO","Plan7 7. PLA DE APL 8 Cap Int.","Plan8 Parâmetro e &","Planilha9_11_DOC_INTEGR_PT ","Plan10_OBR_MONI_AVAL_P.CONTAS","Plan11_ASSINATURAS","Municipios"],"not_rendered":{"charts":0,"images":6,"macros":1,"external_links":2,"defined_names":11,"comments":4,"pivot_tables":0},"unopened":[],"bounds":{"document_bytes":16777216,"sheet_cells":100000,"rows_first":2000,"rows_last":500,"rows_between":2000,"halvings":0,"cell_chars":16384,"cell_head_chars":4096},"cells_cut":0,"cells_raw":0,"read":"whole","date_system":"1900"}

{"sheet":"Plan0_Definições","index":0,"n_rows":15,"n_cols":3,"rows_kept":15,"cut":false,"hidden":true,"merged":[[9,2,9,11],[1,1,1,11],[3,1,3,11],[5,2,5,11],[6,2,6,11],[7,2,7,11],[8,2,8,11],[10,2,10,11],[12,2,12,11],[11,2,11,11],[13,2,13,11],[14,2,14,11]]}
[]
[null,"PROGRAMA ESTRADAS DA INTEGRAÇÃO  PROJETO DE ADEQUAÇÃO, READEQUAÇÃO, MAUTENÇÃO E OU MELHORIAS DE ESTRADAS RURAIS MUNICIPAIS - CUSTEIO SOMENTE ÓLEO DIESEL COM BASE EM  RTV - Relatório Técnico de Vistoria e Projetos Técnicos"]
[]
[null,"1 . DEFINIÇÕES"]
[]
[null,"1.1","ABERTURA DE ESTRADAS RURAIS:  obra destinada a dar acesso aos lotes que estão sendo objeto de reforma agrária, permitindo assim o livre acesso dos moradores ao comércio, educação, saúde e cidadania. Utilizando –se de práticas para a Conservação de solos e consequentemente das estradas, com a construção de estruturas para captação e retenção de águas pluviais."]
[null,"1.2","ADEQUAÇÃO DE ESTRADAS RURAIS*: obras destinadas à execução de melhoramentos em estradas rurais de menor hierarquia funcional, possuindo superfície de rolamento “não pavimentada”, cujo objetivo é o de elevar seu padrão operacional. Inclui-se nessa modalidade de intervenção:\n•         Serviços de re-locação de parte de seu traçado;\n•         Re-conformação de segmentos do greide;\n•         Execução de camadas de reforço do sub-leito e/ou;\n•         Revestimento primário. \n*Fonte: Estradas rurais Técnicas Adequadas de Manutenção. Florianópolis DER, 2003. 236 p. il. 30cm.\n"]
[null,"1.3","MANUTENÇÃO DE ESTRADA RURAL: pode ser definido como amplo conjunto de atividades destinadas a assegurar um transporte seguro, econômico e confortável em uma estrada ou rede de estradas. Uma das finalidades primordiais da manutenção é evitar, ao máximo possível, a perda desnecessária do capital já investido, mediante a proteção física da estrutura básica e da superfície de rolamento da estrada. A manutenção deve evitar a deterioração precoce da estrutura das estradas e, por conseguinte, a necessidade de serviços de reconstrução. Inclui-se nessa definição, as atividades de manutenção corretiva rotineira e periódica. "]
[null,"1.4","MELHORIA DE ESTRADA RURAL: Conjunto de operações que acrescentam as rodovias (estradas) existentes características novas, sem modificar as existentes ex. colocação de bueiros, sarjeteamento, bigodes, caixas de retenção. (fonte: DNER, glossário de termos técnicos rodoviários, Rio de janeiro, 1997, 266p. IPR. Publ.; 700)."]
[null,"1.5","Trafegabilidade é uma palavra derivada de trafegável, que se pode trafegar, andar no tráfego; fazer algum caminho; andar, transitar: os pedestres precisam de cuidado ao trafegar por ruas movimentadas. (fonte: https://www.dicio.com.br)"]
[null,"1.6","XXI - serviço de engenharia: toda atividade ou conjunto de atividades destinadas a obter determinada\nutilidade, intelectual ou material, de interesse para a Administração e que, não enquadradas no conceito de obra a que se refere o inciso XII do caput deste artigo, são estabelecidas, por força de lei, como privativas das profissões de arquiteto e engenheiro ou de técnicos especializados, que compreendem:\na) serviço comum de engenharia: todo serviço de engenharia que tem por objeto ações, objetivamente padronizáveis em termos de desempenho e qualidade, de manutenção, de adequação e de adaptação de bens móveis e imóveis, com preservação das características originais dos bens;\nb) serviço especial de engenharia: aquele que, por sua alta heterogeneidade ou complexidade, não pode se enquadrar na definição constante da alínea “a” deste inciso; fonte: CAPÍTULO III, DAS DEFINIÇÕES, Art. 6º Para os fins desta Lei LEI Nº 14.133, DE 1º DE ABRIL DE 2021"]
[null,1.7,"XXIV - anteprojeto: peça técnica com todos os subsídios necessários à elaboração do projeto básico, que deve conter, no mínimo, os seguintes elementos: L14133 http://www.planalto.gov.br/ccivil_03/_ato2019-2022/2021/lei/L14133.htm 4 of 73 30/11/2022 09:56\na) demonstração e justificativa do programa de necessidades, avaliação de demanda do público-alvo, motivação técnico-econômico-social do empreendimento, visão global dos investimentos e definições relacionadas ao nível de serviço desejado;\nb) condições de solidez, de segurança e de durabilidade;\nc) prazo de entrega;\nd) estética do projeto arquitetônico, traçado geométrico e/ou projeto da área de influência, quando cabível;\ne) parâmetros de adequação ao interesse público, de economia na utilização, de facilidade na execução, de impacto ambiental e de acessibilidade;\nf) proposta de concepção da obra ou do serviço de engenharia;\ng) projetos anteriores ou estudos preliminares que embasaram a concepção proposta;\nh) levantamento topográfico e cadastral;\ni) pareceres de sondagem;\nj) memorial descritivo dos elementos da edificação, dos componentes construtivos e dos materiais de construção, de forma a estabelecer padrões mínimos para a contratação;             fonte: CAPÍTULO III, DAS DEFINIÇÕES, Art. 6º Para os fins desta Lei LEI Nº 14.133, DE 1º DE ABRIL DE 2021, consideram-se:\n"]
[null,"1.8","XXV - projeto básico: conjunto de elementos necessários e suficientes, com nível de precisão adequado para definir e dimensionar a obra ou o serviço, ou o complexo de obras ou de serviços objeto da licitação, elaborado com base nas indicações dos estudos técnicos preliminares, que assegure a viabilidade técnica e o adequado tratamento do impacto ambiental do empreendimento e que possibilite a avaliação do custo da obra e a definição dos métodos e do prazo de execução, devendo conter os seguintes elementos:\na) levantamentos topográficos e cadastrais, sondagens e ensaios geotécnicos, ensaios e análises laboratoriais, estudos socioambientais e demais dados e levantamentos necessários para execução da solução escolhida;\nb) soluções técnicas globais e localizadas, suficientemente detalhadas, de forma a evitar, por ocasião da elaboração do projeto executivo e da realização das obras e montagem, a necessidade de reformulações ou variantes quanto à qualidade, ao preço e ao prazo inicialmente definidos;\nc) identificação dos tipos de serviços a executar e dos materiais e equipamentos a incorporar à obra, bem como das suas especificações, de modo a assegurar os melhores resultados para o empreendimento e a segurança executiva na utilização do objeto, para os fins a que se destina, considerados os riscos e os perigos identificáveis, sem frustrar o caráter competitivo para a sua execução;\nd) informações que possibilitem o estudo e a definição de métodos construtivos, de instalações provisórias e de condições organizacionais para a obra, sem frustrar o caráter competitivo para a sua execução;\ne) subsídios para montagem do plano de licitação e gestão da obra, compreendidos a sua programação, a estratégia de suprimentos, as normas de fiscalização e outros dados necessários em cada caso;\nf) orçamento detalhado do custo global da obra, fundamentado em quantitativos de serviços e fornecimentos propriamente avaliados, obrigatório exclusivamente para os regimes de execução previstos nos incisos I, II, III, IV e VII do caput do art. 46 desta Lei;                                                                                    fonte: CAPÍTULO III, DAS DEFINIÇÕES, Art. 6º Para os fins desta Lei LEI Nº 14.133, DE 1º DE ABRIL DE 2021\n"]
[null,"1.9","XXVI - projeto executivo: conjunto de elementos necessários e suficientes à execução completa da obra, com o detalhamento das soluções previstas no projeto básico, a identificação de serviços, de materiais e de equipamentos a serem incorporados à obra, bem como suas especificações técnicas, de acordo com as normas técnicas pertinentes;                                                                                                                                                    fonte: CAPÍTULO III, DAS DEFINIÇÕES, Art. 6º LEI Nº 14.133, DE 1º DE ABRIL DE 2021:"]
[null,"1.10","Art. 169. As contratações públicas deverão submeter-se a práticas contínuas e permanentes de gestão de riscos e de controle preventivo, inclusive mediante adoção de recursos de tecnologia da informação, e, além de estar subordinadas ao controle social, sujeitar-se-ão às seguintes linhas de defesa:\nI - primeira linha de defesa, integrada por servidores e empregados públicos, agentes de licitação e autoridades que atuam na estrutura de governança do órgão ou entidade;                                                                                                                                                                                                 II - segunda linha de defesa, integrada pelas unidades de assessoramento jurídico e de controle interno do próprio órgão ou entidade;                                                                                    III - terceira linha de defesa, integrada pelo órgão central de controle interno da Administração e pelo tribunal de contas...                                                                                                                    fonte: CAPÍTULO III, DO CONTROLE DAS CONTRATAÇÕES Art. 169.LEI Nº 14.133, DE 1º DE ABRIL DE 2021"]

{"sheet":"Plan 1 REND ORIENT Definições ","index":1,"n_rows":11,"n_cols":12,"rows_kept":11,"cut":false,"hidden":false,"merged":[[1,1,1,7],[10,1,72,7]]}
[]
[null,"Rendimentos de serviços"]
[null,"nº","Serviço","Rendimento esperado p/ execução estrada pronta km /mes ","Execução estrada pronta km /ano (10 meses)","possiveis serviços listado nas operações a executar","Autorização ambiental","Anotação de responsabilidade técnica, conforme conselho de classe"]
[null,1,"Adequação c/cascalho",{"$f":"((25+30)/2)/10","v":2.75},{"$f":"D4*10","v":27.5},"Todos","x","x"]
[null,2,"Readequação c/cascalho",{"$f":"((25+30)/2)/10","v":2.75},{"$f":"D5*10","v":27.5},"Todos","x","x",null,null,null,{"$f":"20/D5","v":7.2727272727272725}]
[null,3,"Manutenção s/cascalho (reconstrução e ou recuperação dos serviços)",{"$f":"50/10","v":5},{"$f":"D6*10","v":50},"Terraplenagem nº 03,04, 05 ou 06 ou 12,7,8,10,11, drenagem - 24",null,"x"]
[null,4,"Melhoria c/cascalho em ptos criticos",{"$f":"100/10","v":10},{"$f":"D7*10","v":100},"Terraplenagem nº 03,04, 05 ou 06 ou 12,7,8,10,11, drenagem 13-27, cascalhamento 28-29","x","x"]
[null,5,"Melhoria s/cascalho ",{"$f":"150/10","v":15},{"$f":"D8*10","v":150},"Terraplenagem nº 03,04, 05 ou 06 ou 12,7,8,10,11, drenagem 13-27","x","x"]
[]
[]
[null,"Seguem as definições/conceitos.\n\nCada projeto de estrada rural envolve subprojetos de (1) terraplenagem, (2) drenagem, (3) pavimentação, (4) desapropriações na faixa de domínio, nunca fizemos, e se necessário um (5) projeto para o licenciamento ambiental (corte de árvores e utilização de cascalheiras), cada projeto de estrada tem sua particularidade.\n\nABERTURA DE ESTRADAS RURAIS:  obra destinada a dar acesso aos lotes que estão sendo objeto de reforma agrária, permitindo assim o livre acesso dos moradores ao comércio, educação, saúde e cidadania. Utilizando –se de práticas para a Conservação de solos e consequentemente das estradas, com a construção de estruturas para captação e retenção de águas pluviais.\n\nADEQUAÇÃO DE ESTRADAS RURAIS*: obras destinadas à execução de melhoramentos em estradas rurais de menor hierarquia funcional, possuindo superfície de rolamento “não pavimentada”, cujo objetivo é o de elevar seu padrão operacional. Inclui-se nessa modalidade de intervenção:\n\n        Serviços de re-locação de parte de seu traçado;\n\n·         Re-conformação de segmentos do greide;\n\n·         Execução de camadas de reforço do sub-leito e/ou;\n\n·         Revestimento primário.\n\n*Fonte: Estradas rurais Técnicas Adequadas de Manutenção. Florianópolis DER, 2003. 236 p. il. 30cm.\n\nREADEQUAÇÃO DE ESTRADAS RURAIS: é uma estrada que já foi adequada no passado e fruto de manutenções realizadas de forma incorreta, erosões provocadas por propriedades lindeiras que não possui as práticas conservacionistas adequadas e conduzem água para as estradas\n\nMANUTENÇÃO DE ESTRADA RURAL: pode ser definido como amplo conjunto de atividades destinadas a assegurar um transporte seguro, econômico e confortável em uma estrada ou rede de estradas. Uma das finalidades primordiais da manutenção é evitar, ao máximo possível, a perda desnecessária do capital já investido, mediante a proteção física da estrutura básica e da superfície de rolamento da estrada. A manutenção deve evitar a deterioração precoce da estrutura das estradas e, por conseguinte, a necessidade de serviços de reconstrução. Inclui-se nessa definição, as atividades de manutenção corretiva rotineira e periódica.\n\nMELHORIA DE ESTRADA RURAL: Conjunto de operações que acrescentam as rodovias (estradas) existentes características novas, sem modificar as existentes ex. colocação de bueiros, sarjeteamento, bigodes, caixas de retenção. (fonte: DNER, glossário de termos técnicos rodoviários, Rio de janeiro, 1997, 266p. IPR. Publ.; 700).\n\nPAVIMENTAÇÃO DE ESTRADA RURAL: Estrutura construída após a terraplenagem e destinada, econômica e simultaneamente, em seu conjunto:\n\na)      A resistir e distribuir ao subleito os esforções verticais oriundos dos veículos;\n\nb)      A melhorar as condições de rolamento quanto a comodidade e segurança;\n\nc)      A resistir aos esforços horizontais que nela atuam tornando mais durável a superfície de rolamento.\n\nFonte: NBR 7207/1982\n\nOs tipos de revestimentos (materiais), que podem ser utilizados na pavimentação podem ser:\n\n \n\n \n\nFONTE: DNIT – IPR Manual de Pavimentação 3ª ED. – Rio de Janeiro 2006 274 P. (IPR. Publ., 719).\n\nhttp://www1.dnit.gov.br/arquivos_internet/ipr/ipr_new/manuais/Manual%20de%20Pavimenta%E7%E3o_05.12.06.pdf\n\n "]

{"sheet":"Plan1.1 ORIENTAÇÕES PREENCHIMEN","index":2,"n_rows":47,"n_cols":5,"rows_kept":47,"cut":false,"hidden":false,"merged":[[22,0,24,0],[27,0,28,0],[29,0,30,0],[32,0,33,0],[38,0,43,0],[35,0,37,0],[0,0,0,10],[24,1,24,10],[26,1,26,10],[27,1,27,10],[14,1,14,10],[1,0,1,10],[13,1,13,10],[4,1,4,10],[3,1,3,10],[7,1,7,10],[12,1,12,10],[10,0,10,10],[6,1,6,10],[5,1,5,10],[18,0,18,10],[20,1,20,10],[36,1,36,10],[37,1,37,10],[21,1,21,10],[22,1,22,10],[23,1,23,10],[30,1,30,10],[25,1,25,10],[28,1,28,10],[29,1,29,10],[8,1,8,10],[44,0,44,10],[53,0,53,10],[46,4,51,5],[45,0,45,10],[31,1,31,10],[32,1,32,10],[33,1,33,10],[39,1,39,10],[43,1,43,10],[42,1,42,10],[41,1,41,10],[40,1,40,10],[38,1,38,10],[34,1,34,10],[35,1,35,10]]}
["PROGRAMA ESTRADAS DA INTEGRAÇÃO  PROJETO DE ADEQUAÇÃO, READEQUAÇÃO, MAUTENÇÃO E OU MELHORIAS DE ESTRADAS RURAIS MUNICIPAIS - CUSTEIO SOMENTE ÓLEO DIESEL COM BASE EM  RTV - Relatório Técnico de Vistoria e Projetos Técnicos"]
["1 . ORIENTAÇÕES PARA O PREENCHIMENTO DA PLANILHA"]
[]
["1.1","Todas as células com a cor AZUL devem ser preenchidas pelo MUNICÍPIO"]
["1.2","Todas as células preenchidas de VERDE são resultados automáticos de fórmulas e NÃO PODEM SER MODIFICADAS.\nCaso haja necessidade de incluir novas linhas na planilha é importante verificar se as fórmulas estão contemplando todas as células, conferindo o Número e Letra na fórmula ao clicar nelas. Nesse caso, excepcionalmente, deve-se fazer a correção da fórmula para anular erros (por isso as células não foram bloqueadas)."]
["1.3","A logomarca do município deve ser inserida dentro do quadro abaixo e a mesma será replicada em todas as páginas do plano de trabalho."]
["1.4","Caso a largura de alguma coluna precise ser modificada, para impressão não cortar a página, clicar em Exibir > Vizualização da Quebra de Página: arrastar a linha de quebra para contemplar toda a tabela. Depois Exibir > Normal, para voltar à visualização de planilha."]
["1.5","O valor de contrapartida municipal  é obrigatória  para todas as trasnferencias voluntárias, conforme Lei Federal- nº 14.133 e Decreto Estadual nº 10086, com base do Índice Ipardes de Desempenho Municipal, ano referencia 2021 (https://www.ipardes.pr.gov.br/Pagina/Indice-Ipardes-de-Desempenho-Municipal)"]
["1.6","O plano de trabalho deve ser preenchido, conforme Lei Federal- nº 14.133/2021 e Decreto Estadual nº 10086/2022."]
[]
["2 . ORIENTAÇÕES PARA INCLUSÃO DO PLANO DE TRABALHO NO E-PROTOCOLO"]
[]
["2.1","Para assinatura, há duas opções:\na) Preferencialmente, salvar o documento em .pdf (selecionar todas as pastas da planilha antes de converter para que todas sejam incluídas no documento). Inserir no e-protocolo e assinar eletronicamente;\nb) Ou o documento pode ser impresso englobando todas as pastas do excel. Acessar:\nArquivo> Imprimir> Configurações> Imprimir Toda a Pasta de Trabalho.\nCom o documento físico em mãos, após assinado, este será escaneado e salvo no formato pdf. Então pode ser inserido normalmente no e-protocolo."]
["2.2","Com o documento físico em mãos, após assinado, este será escaneado e salvo no formato pdf. Então pode ser inserido normalmente no e-protocolo."]
["2.3","Também deverá ser inserido no e-protocolo outra versão do Plano de Trabalho no formato excel, como anexo. \nA opção de inserir anexos está localizada logo antes da etapa de encaminhamento conforme exposto na imagem abaixo."]
[]
[]
[]
["3 . ÍNDICE DE PASTAS DA PLANILHA"]
[]
[null,"Conteúdo"]
[1,"Orientações"]
[2,"1. Dados Cadastrais do Município - Ao  informar o Municipio na lista suspensa os dados -  IPDM, CNPJ, Endereço, UF, CEP, Nome do Prefeito serão preenchidos automáricamente, informar demais dados."]
[null,"2. Identificação do Objeto - Sua descrição  será ajustado automáticamente quando informado na guia suspensa da planilha  2.3. Operações (Plan4 2.3. OPERAÇÕES)"]
[null,"2.1. Período de Vigência - informado automáticamente conforme extensão do trecho em 24 ou 36 meses.)"]
[3,"2.2. Quadro Resumo (Total das Estradas Rurais/trechos indicados nos RTV’s, informar os nomes das estradas delimitada pelas coordenadas inicial e final  em UTM)"]
[4,"2.3. Operações (Plan4 2.3. OPERAÇÕES) em função do tipo de pavimentos informado através da guia suspensa  na planilha      ( Plan2 1.DADOS,2.OBJ e 2.1.Vigên), será disponibilizado automáticamente os possiveis serviços a serem projetados  na (Plan4 2.3. OPERAÇÕES), podendo estas serem ajustadas conforme a necessidade. Deverá ser apresentado em separado as memorias de calculos e o respectivo termo de referência. O DMT - Distancia Média de Transporte dos materiais a serem trasnportados deve ser  elaborado com base em tres possiveis fornecedores. "]
[5,"3. Justificativa- Descrever detalhadamente sobre a necessidade da execução da Obra, custo e beneficio em conformidade com a planilha - Plan5 3. JUSTIFIC. e 4.BENEFIC."]
[null,"4. Beneficiários elenca- los conforme Plan5 3. JUSTIFIC. e 4.BENEFIC."]
[6,"5. Definição e detalhamento das metas"]
[null,"6. Etapas de execução - Indicar todos os trechos  realacionados na Planilha 3 - 2.2 (Quadro Resumo) - Divididos em Subtrechos-  Etapas de 1.000,00 em 1.000,00 m, na quantidade que for necessária."]
[7,"7. Plano de Aplicação dos Recursos Financeiros 8. Capacidade instalada do municipio;"]
[8,"9. Previsão de início e fim da execução do objeto (considerar como ponto inicial a publicação no DIOE-PR). Os trechos especificado na planilha Plan8 8.PREVISÃO e 9 CRONOGRAMA devem estar alinhados com a planilha  Plan 6 5. METAS e 6.ETAPAS"]
[null,"10. Cronograma de desembolso (quando necessário ajustar o número de meses entre as parcelas)"]
[9,"11. DO MONITORAMENTO, AVALIAÇÃO E DA PRESTAÇÃO DE CONTAS "]
[10,"12. Documentos integrantes do plano de trabalho"]
[null,"12.1 Descrição dos documentos"]
[null,"12.2  Para obras ou serviços de engenharia e arquitetura."]
[11,"13. Declaração do Responsável Contábil pela Elaboração do Plano de Trabalho"]
[null,"14. Declaração do Responsável Técnico pela Elaboração do Plano de Trabalho"]
[null,"15.  Declaração do Município "]
[null,"16. Assinatura do Gestor do Convênio pela SEAB (Chefe do NR)"]
[null,"17.1 e 17.2  Manifestação técnica  do DEAGRO - sede"]
[null,"18. Aprovação pela SEAB"]
["FORMULÁRIO - PLANO DE TRABALHO VERSÃO 30-11-2023"]
["INSIRA DENTRO DO QUADRO A LOGO DO MUNICÍPIO"]
[null,null,null,null,"LOGO"]

{"sheet":"Plan2 1.DADOS,2.OBJ e 2.1.Vigên","index":3,"n_rows":64,"n_cols":13,"rows_kept":64,"cut":false,"hidden":false,"merged":[[20,11,21,17],[13,2,13,8],[8,6,8,8],[8,2,8,4],[12,5,12,8],[11,2,11,8],[12,2,12,3],[9,6,9,8],[10,2,10,8],[17,2,17,4],[38,4,38,8],[1,2,1,8],[26,2,26,8],[27,2,27,3],[27,5,27,8],[22,2,22,8],[23,6,23,8],[23,2,23,3],[18,2,18,8],[19,2,19,8],[21,2,21,8],[20,6,20,8],[17,5,17,6],[6,2,6,8],[7,2,7,8],[17,7,17,8],[23,4,23,5],[37,1,37,3],[29,1,29,8],[24,2,24,8],[34,1,34,3],[35,1,35,3],[36,1,36,3],[30,1,32,8],[37,4,37,8],[36,4,36,8],[35,4,35,8],[34,4,34,8]]}
[]
[null,null,"PLANO DE TRABALHO\n MELHORIA DA TRAFEGABILIDADE EM ESTRADAS RURAIS MUNICIPAIS\nÓLEO DIESEL com base no RTV - Relatório Técnico de Vistoria e Projetos Técnicos"]
[]
[null,"1. DADOS CADASTRAIS "]
[null,"1.1 DO CONCEDENTE"]
[]
[null,"Secretaria","Secretaria da Agricultura e do Abastecimento"]
[null,"CNPJ:","76.416.957/0001-85"]
[null,"Endereço:","Rua dos Funcionários nº 1559, Cabral",null,null,"Município:","Curitiba"]
[null,"UF:","PR","CEP:","80035-050","Telefone:","(41) 3313-4000"]
[null,"Contato:","https://www.agricultura.pr.gov.br/Formulario/Fale-com-SEAB"]
[null,"Secretário","Norberto Anacleto Ortigara "]
[null,"Decreto n.º","0009/2023",null,"Cargo:","Secretário de Estado da Agricultura e do Abastecimento - SEAB"]
[null,"e-mail:","nortigara@seab.pr.gov.br"]
[null,"Obs.: LGPD - Lei Geral de Proteção de Dados Pessoais, Lei nº 13.709/2018, IPDM - (Índice Ipardes de Desempenho Municipal)"]
[null,"1.2  DO TOMADOR"]
[]
[null,"Município:","Adrianópolis",null,null,"IPDM (IPARDES)",null,{"$f":"VLOOKUP(C18,Municipios!A:I,2,0)","v":0.64804302597985686}]
[null,"CNPJ:",{"$f":"VLOOKUP(C18,Municipios!A:I,5,0)","v":"76.105.642/0001-17"}]
[null,"Endereço:",{"$f":"VLOOKUP(C18,Municipios!A:I,7,0)","v":"Av. Marechal Mascarenhas de Morães, 115, Centr"}]
[null,"UF:","PR","CEP:",{"$f":"VLOOKUP(C18,Municipios!A:I,8,0)","v":"83.490-000"},"Telefone:","XXXXXXX"]
[null,"e-mail:","XXXXXXXXXXX"]
[null,"Prefeito",{"$f":"VLOOKUP(C18,Municipios!A:I,9,0)","v":"Vandir de Oliveira Rosa"}]
[null,"CPF - (LGPD*):","XXXXXXXXX",null,"RG/Órgão Expedidor (LGPD*):",null,"XXXXXXXXX"]
[null,"e-mail:","XXXXXXXXX"]
[null,"Obs.: LGPD - Lei Geral de Proteção de Dados Pessoais, Lei nº 13.709/2018, IPDM - (Índice Ipardes de Desempenho Municipal)",null,null,null,null,null,null,null,null,null,"Constitui objeto deste Convênio, a união de esforços dos partícipes para o desenvolvimento de ações que integram o Plano Paraná Mais Cidades III – PPMC III, voltadas ao Desenvolvimento Rural Sustentável em proveito, prioritariamente, do incremento da agricultura familiar, visando assegurar a trafegabilidades dos trechos de estradas rurais identificadas no item 2.2 - Quadro Resumo,  mediante a aquisição de "]
[null,"Banco:","XXXXXXXXXX",null,null,null,null,null,null,null,null," litros de óleo diesel para execução de serviços de  "," em "]
[null,"Agência:","XXXXXXXXXX",null,"Conta Convênio:","XXXXXXXXXX",null,null,null,null,null," metros lineares, com largura média de "]
[null,null,null,null,null,null,null,null,null,null,null," m e uma àrea de pavimento de "]
[null,"2. IDENTIFICAÇÃO DO OBJETO",null,null,null,null,null,null,null,null,null," m², consoantes ao Programa Estradas Rurais Integradas aos Princípios e Sistemas Conservacionistas - Estradas da Integração (Decreto nº 6.515/2012)"]
[null,{"$f":"CONCATENATE(L26,M33,L27,E35,M27,L31,L28,L32,L29,L33,L30)","v":"Constitui objeto deste Convênio, a união de esforços dos partícipes para o desenvolvimento de ações que integram o Plano Paraná Mais Cidades III – PPMC III, voltadas ao Desenvolvimento Rural Sustentável em proveito, prioritariamente, do incremento da agricultura familiar, visando assegurar a trafegabilidades dos trechos de estradas rurais identificadas no item 2.2 - Quadro Resumo,  mediante a aquisição de 4.300,42 litros de óleo diesel para execução de serviços de  MANUTENÇÃO em 102.000,00 metros lineares, com largura média de 6 m e uma àrea de pavimento de 306.000,00 m², consoantes ao Programa Estradas Rurais Integradas aos Princípios e Sistemas Conservacionistas - Estradas da Integração (Decreto nº 6.515/2012)"},null,null,null,null,null,null,null,null,null,{"$f":"TEXT(E36,\"#.##0.000,00\")","v":"102.000,00"}]
[null,null,null,null,null,null,null,null,null,null,null,6]
[null,null,null,null,null,null,null,null,null,null,null,{"$f":"TEXT(E38,\"#.##0.000,00\")","v":"306.000,00"},{"$f":"TEXT('Plan4 2.3. OPERAÇÕES'!Q54,\"#.##0.000,00\")","v":"4.300,42"}]
[]
[null,"Tipo de Serviço",null,null,"MANUTENÇÃO",null,null,null,null,null,null,"Tipos de Servíço","Valor"]
[null,"Extensão (m)",null,null,{"$f":"'Plan3 2.2. QUADRO RESUMO'!H18","v":102000},null,null,null,null,null,null,"ADEQUAÇÃO",500000]
[null,"Média Largura (m)",null,null,{"$f":"'Plan3 2.2. QUADRO RESUMO'!J18","v":3},null,null,null,null,null,null,"READEQUAÇÃO",500000]
[null," Área dos serviços (m²)",null,null,{"$f":"'Plan3 2.2. QUADRO RESUMO'!M18","v":306000},null,null,null,null,null,null,"MELHORIAS",500000]
[null,"Quantidade de óleo diesel (litros)",null,null,{"$f":"'Plan4 2.3. OPERAÇÕES'!Q54","v":4300.423343362957},null,null,null,null,null,null,"MANUTENÇÃO",500000]
[null,null,null,null,null,null,null,null,null,null,null,"MANUTENÇÃO E MELHORIAS",500000]
[null,"2.1.  Prazo de Vigência e Execução",null,null,null,null,null,null,null,null,null,"ADEQUAÇÃO, READEQUAÇÃO, MANUTENÇÃO E MELHORIA",500000]
[]
[null,"Vigência: ",null,null," meses "]
[]
[null,"Execução:  ",null,{"$f":"D43-6","v":-6}," meses "]
[null,"Obs. A data de inicio das vigencias estara previsto no Termo de convênio"]
[]
[]
[]
[]
[]
[]
[]
[]
[]
[]
[]
[null,null,null,null,null,null,null,null,null,null,null,"Coluna1","Coluna2"]
[null,null,null,null,null,null,null,null,null,null,null,"RECAPE - CBUQ",2000000]
[null,null,null,null,null,null,null,null,null,null,null,"PARALELEPIPEDO",1680000]
[null,null,null,null,null,null,null,null,null,null,null,"PAVER",1100000]
[null,null,null,null,null,null,null,null,null,null,null,"TSS - Tratamento Superficial Simples",600000]
[null,null,null,null,null,null,null,null,null,null,null,"TSD - Tratamento Superficial Duplo",700000]
[null,null,null,null,null,null,null,null,null,null,null,"TST - Tratamento Superficial Triplo",800000]

{"sheet":"Plan3 2.2. QUADRO RESUMO","index":4,"n_rows":21,"n_cols":14,"rows_kept":21,"cut":false,"hidden":false,"merged":[[5,3,6,3],[5,8,6,8],[21,1,21,13],[20,1,20,13],[18,1,18,6],[17,1,17,6],[1,5,1,13],[3,1,3,13],[5,1,6,1],[5,2,6,2],[1,1,1,2],[5,11,6,11],[5,13,6,13],[5,12,6,12],[5,7,6,7],[5,4,5,6],[5,10,6,10],[5,9,6,9]]}
[]
[null,null,null,null,null,"PLANO DE TRABALHO\n MELHORIA DA TRAFEGABILIDADE EM ESTRADAS RURAIS MUNICIPAIS\nÓLEO DIESEL com base no RTV - Relatório Técnico de Vistoria e Projetos Técnicos"]
[]
[null,"2.2. Quadro Resumo (Total das Estradas Rurais/trechos indicados nos RTV’s*)"]
[]
[null,"nº","Estrada Rural/ Nome/ Trechos","Tipo de Serviço (ADEQUAÇÃO / READEQUAÇÃO / MANUTENÇÃO / MELHORIA)","Coordenadas UTM - SAD-69",null,null,"Extensão total(m)","Extensão cascalhamento (m)","Larg. total (m)","Larg. Cascalhamento (m)","Espessura cascalho compactado (m)","Área total (m²)","Área cascalhada(m²)"]
[null,null,null,null,"FUSO","Início                        Lat./Long.","Término                       Lat./Long."]
[null,1,"xxx",null,"zz","vvv","bbb",10000,1000,7,6,0.15,{"$f":"H8*J8","v":70000},{"$f":"I8*K8","v":6000}]
[null,2,null,null,null,null,null,12000,1200,3,2,7.0000000000000007E-2,{"$f":"H9*J9","v":36000},{"$f":"I9*K9","v":2400}]
[null,3,null,null,null,null,null,80000,800,2.5,2,7.0000000000000007E-2,200000,1600]
[null,4,null,null,null,null,null,null,null,null,null,null,0,0]
[null,5,null,null,null,null,null,null,null,null,null,null,0,0]
[null,6,null,null,null,null,null,null,null,null,null,null,0,0]
[null,7,null,null,null,null,null,null,null,null,null,null,0,0]
[null,8,null,null,null,null,null,null,null,null,null,null,0,0]
[null,9,null,null,null,null,null,null,null,null,null,null,0,0]
[null,10,null,null,null,null,null,null,null,null,null,null,0,0]
[null,"TOTAL/m.",null,null,null,null,null,{"$f":"SUM(H8:H17)","v":102000},{"$f":"SUM(I8:I17)","v":3000},{"$f":"SUMPRODUCT(H8:H17,J8:J17)/SUM(H8:H17)","v":3},{"$f":"SUMPRODUCT(I8:I17,K8:K17)/SUM(I8:I17)","v":3.3333333333333335},{"$f":"SUMPRODUCT(I8:I17,L8:L17)/SUM(I8:I17)","v":9.6666666666666665E-2},{"$f":"SUM(M8:M17)","v":306000},{"$f":"SUM(N8:N17)","v":10000}]
[null,"TOTAL/Km",null,null,null,null,null,{"$f":"H18/1000","v":102}]
[]
[null,"*Relatórios Técnico de Vistorias  (01 por trecho/estrada rural)"]

{"sheet":"Plan4 2.3. OPERAÇÕES","index":5,"n_rows":64,"n_cols":23,"rows_kept":64,"cut":false,"hidden":false,"merged":[[16,13,17,13],[1,3,2,16],[6,20,6,22],[24,1,25,1],[24,3,25,3],[43,1,45,1],[43,3,45,3],[26,1,26,12],[31,4,31,7],[32,4,32,7],[33,4,33,7],[34,4,34,7],[35,4,35,7],[36,4,36,7],[29,4,29,7],[30,4,30,7],[37,4,37,7],[38,4,38,7],[39,4,39,7],[24,13,25,13],[21,3,22,3],[1,21,1,22],[1,18,2,18],[10,4,11,7],[20,4,20,7],[21,4,22,7],[23,4,23,7],[24,4,25,7],[6,1,7,3],[21,9,22,9],[24,9,25,9],[21,8,22,8],[24,8,25,8],[16,1,17,1],[16,3,17,3],[21,1,22,1],[16,9,17,9],[16,8,17,8],[19,4,19,7],[13,4,13,7],[14,4,14,7],[15,4,15,7],[16,4,17,7],[18,4,18,7],[6,4,7,7],[6,8,8,8],[12,4,12,7],[7,20,8,20],[2,21,2,22],[10,1,11,1],[10,2,11,2],[10,3,11,3],[10,9,11,9],[6,9,8,9],[9,13,9,15],[7,21,7,22],[4,19,4,20],[4,21,4,22],[4,1,4,18],[8,4,8,7],[6,17,6,18],[7,18,8,18],[7,17,8,17],[6,16,8,16],[6,15,8,15],[6,11,8,11],[6,14,8,14],[6,13,8,13],[10,13,11,13],[5,1,5,3],[5,19,5,20],[43,8,45,8],[59,2,60,2],[59,3,60,3],[58,2,58,3],[55,1,55,18],[47,1,47,12],[51,4,51,7],[50,1,50,12],[50,13,50,15],[47,13,47,15],[59,4,60,4],[59,5,60,5],[48,4,48,7],[49,4,49,7],[43,4,45,7],[46,4,46,7],[5,21,5,22],[58,4,58,8],[59,6,59,7],[59,8,60,8],[59,9,60,9],[59,10,60,10],[58,9,58,10],[42,13,42,15],[42,1,42,12],[52,4,52,7],[57,2,57,10],[7,19,8,19],[53,1,53,15],[27,4,27,7],[28,4,28,7],[21,13,22,13],[26,13,26,15],[9,1,9,12],[6,12,8,12],[6,10,8,10],[40,4,40,7],[41,4,41,7],[43,13,45,13],[43,9,45,9]]}
[]
[null,null,null,"PLANO DE TRABALHO\n MELHORIA DA TRAFEGABILIDADE EM ESTRADAS RURAIS MUNICIPAIS\nÓLEO DIESEL com base no RTV - Relatório Técnico de Vistoria e Projetos Técnicos",null,null,null,null,null,null,null,null,null,null,null,null,null,null,"Contrapartida:  ","Municipio","IPDM","% DA CONTRAPARTDIDA"]
[null,null,null,null,null,null,null,null,null,null,null,null,null,null,null,null,null,null,null,{"$f":"'Plan2 1.DADOS,2.OBJ e 2.1.Vigên'!C18","v":"Adrianópolis"},{"$f":"VLOOKUP(T3,Municipios!A:C,2,0)","v":0.64804302597985686},{"$f":"VALUE(VLOOKUP(U3,Municipios!B:D,2,0))","v":0.05}]
[]
[null,"2.3. Operações a serem executadas nos trechos (referência utilizada de rendimentos: Tabelas de composição de custos SEIL/DER/PR). E excepcionalmente SINAPI E DNIT, nos casos de serviços não contemplados pela tabeLa do DER-Pr",null,null,null,null,null,null,null,null,null,null,null,null,null,null,null,null,null,"ANP (DD/MM/AAAA)",null,"2022-10-01"]
[null,"SITE  FONTE:",null,null,"https://www.gov.br/anp/pt-br/assuntos/precos-e-defesa-da-concorrencia/precos",null,null,null,null,null,null,null,null,null,null,null,null,null,null,"OUTRO ESPECIFICAR (DD/MM/AAAA)"]
[null,"Tipo  Serviço:",null,null,{"$f":"'Plan2 1.DADOS,2.OBJ e 2.1.Vigên'!E35","v":"MANUTENÇÃO"},null,null,null,"Unid.","Qtd.","Rodovia pavimentada   DMT - km","Rodovia não pavimentada    DMT - km","MÁQUINA (referência)  E OUTROS A UTILIZAR","RENDIMENTO ESPERADO ","Nº DE HORAS MÁQUINAS E CAMINHÕES / outros","média de consumo  de OD                L/ HORA","N° DE LITROS OD -Óleo diesel","CUSTO  ÓLEO DIESEL - ANP EM .../.../202...(R$) e outros custos",null,"SEAB","CONTRAPARTIDA (MUNICÍPIO)²"]
[null,null,null,null,null,null,null,null,null,null,null,null,null,null,null,null,null,"UNITÁRIO","TOTAL","R$","FINANCEIRA R$","FÍSICA"]
[null,"Nº","Natureza de despesa","Código DER PR","Itens",null,null,null,null,null,null,null,null,null,null,null,null,null,null,null,null,"SERVIÇOS","BENS"]
[null,"01-TERRAPLENAGEM",null,null,null,null,null,null,null,null,null,null,null,{"$f":"CONCATENATE(\"SubTotal \",B10)","v":"SubTotal 01-TERRAPLENAGEM"},null,null,{"$f":"SUM(Q11:Q26)","v":2748.504249543581},null,{"$f":"SUM(S11:S26)","v":13770.006290213345},13081.505975702676,688.50031451066718,0,0]
[null,1,"3.3.90.30.03","40115","Escavação carga e transporte de material de 1ª categoria 0 - 50 m",null,null,null,"m³",1000,0,0,"Motoniveladora 120 H",138.25,{"$f":"J11/N11*0.2","v":1.4466546112115735},20.41,{"$f":"O11*P11","v":29.526220614828215},5.01,{"$f":"Q11*R11","v":147.92636528028936},{"$f":"S11-U11-V11-W11","v":140.53004701627489},{"$f":"S11*$V$3","v":7.396318264014468},0,0]
[null,null,null,null,null,null,null,null,"m³",null,0,0,"Trator de lâmina D-6 ",null,{"$f":"J11/N11","v":7.2332730560578664},16.61,{"$f":"O12*P12","v":120.14466546112115},{"$f":"$R$11","v":5.01},{"$f":"Q12*R12","v":601.92477396021695},{"$f":"S12-U12-V12-W12","v":571.82853526220606},30.09623869801085,0,0]
[null,2,{"$f":"$C$11","v":"3.3.90.30.03"},"40102","Desmatamento e limpeza até Ø 30 cm",null,null,null,"m²",1000,0,0,"Trator de lâmina D-6 ",463.68,{"$f":"J13/N13","v":2.1566597653554176},16.61,35.822118702553482,{"$f":"$R$11","v":5.01},179.46881469979294,{"$f":"S13-U13-V13-W13","v":170.49537396480329},8.9734407349896479,0,0]
[null,3,{"$f":"$C$11","v":"3.3.90.30.03"},"40108","Lombadas",null,null,null,"m³",1000,0,0,"Carregador frontal pneus 924 – G",110,{"$f":"J14/N14","v":9.0909090909090917},15.92,144.72727272727275,5.01,725.0836363636364,688.82945454545461,36.25418181818182,0,0]
[null,4,"3.3.90.30.03","42110","Caixa de retenção",null,null,null,"m³",1000,0,0,"Retroescavadeira JCB 4x4",21.31,{"$f":"J15/N15","v":46.926325668700144},8.5,398.87376818395126,5.01,1998.3575786015956,1898.4396996715159,99.91787893007978,0,0]
[null,5,"3.3.90.30.03",401060,"Regularização de leito/patrolamento",null,null,null,"m²",1000,0,0,"Motoniveladora 120 H",1742,{"$f":"J16/N16","v":0.57405281285878296},20.41,11.71641791044776,5.01,58.699253731343276,55.764291044776115,2.9349626865671641,0,0]
[null,6,"3.3.90.30.03",51103,"Regularização, conformação e compactação visual do leito ",null,null,null,"m²",1000,0,0,"Motoniveladora 120 H",688.54,{"$f":"J17/N17*0.34","v":0.4937984721294334},20.41,10.078426816161736,5.01,50.492918348970292,47.968272431521775,2.524645917448515,0,0]
[null,null,"3.3.90.30.03",null,null,null,null,null,null,null,0,0,"Rolo compactador CA - 25",null,{"$f":"J17/N17","v":1.4523484474395099},11.59,16.832718505823919,5.01,84.331919714177829,80.115323728468937,4.2165959857088913,0,0]
[null,7,"3.3.90.30.03",40107,"Retaludamento",null,null,null,"m²",1000,0,0,"Motoniveladora 120 H",650,{"$f":"J19/N19","v":1.5384615384615385},20.41,31.400000000000002,5.01,157.31399999999999,149.44829999999999,7.8657000000000004,0,0]
[null,8,"3.3.90.30.03",40113,"Escavação para saída de água",null,null,null,"m³",1000,0,0,"Retroescavadeira JCB 4x4",37.299999999999997,{"$f":"J20/N20","v":26.809651474530835},8.5,227.88203753351209,5.01,1141.6890080428955,1084.6045576407507,57.084450402144775,0,0]
[null,9,"3.3.90.30.03","40101","Destocamento árvores Ø > 30cm",null,null,null,"unidade",1000,0,0,"Trator de lâmina D-6 ",12,83.333333333333329,16.61,1384.1666666666665,5.01,6934.6749999999993,6587.9412499999989,346.73374999999999,0,0]
[null,10,"3.3.90.30.03",40115,"Bigodes/Sangradouros",null,null,null,"m³",1000,0,0,"Motoniveladora 120 H",138.25,{"$f":"J22/N22*0.2","v":1.4466546112115735},20.41,29.526220614828215,5.01,147.92636528028936,140.53004701627489,7.396318264014468,0,0]
[null,null,"3.3.90.30.03",null,null,null,null,null,null,null,0,0,"Trator de lâmina D-6 ",null,{"$f":"J22/N22","v":7.2332730560578664},16.61,120.14466546112115,5.01,601.92477396021695,571.82853526220606,30.09623869801085,0,0]
[null,11,"3.3.90.30.03","OPÇÃO 2  PÁ","Bigodes/Sangradouros",null,null,null,"m³",1000,0,0,"Carregador frontal pneus 924 – G",110,{"$f":"J24/N24","v":9.0909090909090917},15.92,144.72727272727275,5.01,725.0836363636364,688.82945454545461,36.25418181818182,0,0]
[null,12,"3.3.90.30.03",51113,"Escarificação, conformação e compactação do subleito",null,null,null,"m²",1000,0,0,"Motoniveladora 120 H",417.3,{"$f":"(J25/N25)*0.31","v":0.74287083632878026},20.41,15.161993769470405,5.01,75.961588785046729,72.163509345794395,3.7980794392523367,0,0]
[null,null,"3.3.90.30.03",null,null,null,null,null,null,null,0,0,"Rolo compactador CA - 25",null,{"$f":"J25/N25","v":2.3963575365444525},11.59,27.773783848550202,5.01,139.1466570812365,132.18932422717467,6.9573328540618249,0,0]
[null,"02-DRENAGEM",null,null,null,null,null,null,null,null,null,null,null,{"$f":"CONCATENATE(\"SubTotal \",B27)","v":"SubTotal 02-DRENAGEM"},null,null,{"$f":"SUM(Q28:Q42)","v":274.72506396862997},null,{"$f":"SUM(S28:S42)","v":9942.3263704828369},{"$f":"SUM(T28:T42)","v":1307.5539419586944},68.818628524141815,8565.9537999999993,0]
[null,13,{"$f":"$C$11","v":"3.3.90.30.03"},60760,"Assentamento de tubos 0,30 m sem berço ",null,null,null,"m",10,0,0,"Retroescavadeira JCB 4x4",10,{"$f":"J28/N28","v":1},8.5,8.5,{"$f":"$R$11","v":5.01},{"$f":"Q28*R28","v":42.585000000000001},40.455750000000002,{"$f":"S28*$V$3","v":2.1292500000000003},0,0]
[null,14,"3.3.90.30.03","60301","Assentamento de tubos 0,40 m sem berço ",null,null,null,"m",10,0,0,"Retroescavadeira JCB 4x4",10,{"$f":"J29/N29","v":1},8.5,8.5,5.01,{"$f":"Q29*R29","v":42.585000000000001},40.455750000000002,2.1292500000000003,0,0]
[null,15,"3.3.90.30.03","60302","Assentamento de tubos 0,60 m sem berço ",null,null,null,"m",10,0,0,"Retroescavadeira JCB 4x4",6,1.6666666666666667,8.5,14.166666666666668,5.01,70.975000000000009,67.42625000000001,3.5487500000000005,0,0]
[null,16,"3.3.90.30.03","60304","Assentamento de tubos 0,80 m sem berço",null,null,null,"m",10,0,0,"Retroescavadeira JCB 4x4",4,2.5,8.5,21.25,5.01,106.46249999999999,101.13937499999999,5.3231250000000001,0,0]
[null,17,"3.3.90.30.03","61100","Assentamento de tubos 1,00 m sem berço",null,null,null,"m",10,0,0,"Escav.Hidr. EC – 140",4,2.5,14,35,5.01,175.35,166.58249999999998,8.7675000000000001,0,0]
[null,18,"Serviço/Município",60110,"Apiloamento manual",null,null,null,"m³",{"$f":"J28*0.93+J29*0.974+J30*1.407+J31*2.197+J32*2.615","v":81.23},0,0,"Um e meio homem",1.55,52.406451612903226,0,0,47.36,{"$f":"J33*R33","v":3847.0527999999999},{"$f":"S33-U33-V33-W33","v":0},0,{"$f":"S33","v":3847.0527999999999},0]
[null,19,"3.3.90.30.03",60760,"Assentamento de tubos 0,30 m sem berço - Transporte - peso unitário -0,097ton.",null,null,null,"ton.",{"$f":"TRUNC(J28*0.097,2)","v":0.97},10,10,"CAMINHÃO BASCULANTE - 10,00 m³ ou 15,00 ton.",{"$f":"J34/O34","v":15},{"$f":"((J34/15)*(K34+L34))/20","v":6.4666666666666664E-2},15,0.97,5.01,4.8596999999999992,4.6167149999999992,0.24298499999999998,0,0]
[null,20,"3.3.90.30.03","60301","Assentamento de tubos 0,40 m sem berço - Transporte - peso unitário -0,110ton.",null,null,null,"ton.",{"$f":"TRUNC(J29*0.11,2)","v":1.1000000000000001},10,10,"CAMINHÃO BASCULANTE - 10,00 m³ ou 15,00 ton.",{"$f":"J35/O35","v":15.000000000000002},{"$f":"((J35/15)*(K35+L35))/20","v":7.3333333333333334E-2},15,1.1000000000000001,5.01,5.5110000000000001,5.2354500000000002,0.27555000000000002,0,0]
[null,21,"3.3.90.30.03","60302","Assentamento de tubos 0,60 m sem berço - Transporte - peso unitário - 0,390 ton.",null,null,null,"ton.",{"$f":"TRUNC(J30*0.39,2)","v":3.9},10,10,"CAMINHÃO BASCULANTE - 10,00 m³ ou 15,00 ton.",15,0.26,15,3.9000000000000004,5.01,19.539000000000001,18.562050000000003,0.9769500000000001,0,0]
[null,22,"3.3.90.30.03","60304","Assentamento de tubos 0,80 m sem berço - Transporte - peso unitário - 0,670 ton.",null,null,null,"ton.",{"$f":"TRUNC(J31*0.67,2)","v":6.7},10,10,"CAMINHÃO BASCULANTE - 10,00 m³ ou 15,00 ton.",15,0.44666666666666666,15,6.7,5.01,33.567,31.888649999999998,1.67835,0,0]
[null,23,"3.3.90.30.03","61100","Assentamento de tubos 1,00 m sem berço - Transporte - peso unitário - 1,000ton.",null,null,null,"ton.",{"$f":"TRUNC(J32*1,2)","v":10},10,10,"CAMINHÃO BASCULANTE - 10,00 m³ ou 15,00 ton.",15,0.66666666666666663,15,10,5.01,50.099999999999994,47.594999999999992,2.5049999999999999,0,0]
[null,24,"3.3.90.30.03","40114","Escavação de vala lateral rasa com motoniveladora",null,null,null,"m",2000,0,0,"Motoniveladora 120 H",735,{"$f":"J39/N39","v":2.7210884353741496},20.41,55.537414965986393,5.01,278.24244897959181,264.33032653061224,13.912122448979591,0,0]
[null,25,"3.3.90.30.03","60303","Escavação de bueiros e valas de drenagem 1a. cat.",null,null,null,"m³",{"$f":"(J28*1+J29*1.1+J30*1.69+J31*2.7+J32*3.4)","v":98.9},0,0,"Escav.Hidr. CX – 210",27.74,3.5652487382840667,14,49.913482335976937,5.01,250.06654650324444,237.56321917808222,12.503327325162223,0,0]
[null,26,"Serviço/Município","60370","Enrocamento pedra de mão arrumada",null,null,null,"m³",{"$f":"J28*0.2117+J29*0.2577+J30*0.3549+J31*0.6884+J32*0.8548","v":23.675000000000001},0,0,"Dois homens",1,23.675000000000001,0,0,199.32,{"$f":"J41*R41","v":4718.9009999999998},{"$f":"S41-U41-V41-W41","v":0},0,{"$f":"S41","v":4718.9009999999998},0]
[null,27,"3.3.90.30.03","97230","Enrocamento pedra de mão arrumada - transporte",null,null,null,"ton.",{"$f":"J41*1.98","v":46.8765},10,10,"CAMINHÃO BASCULANTE - 10,00 m³ ou 15,00 ton.",{"$f":"J42/O42","v":11.88},{"$f":"((J42/11.88)*(K42+L42))/20","v":3.9458333333333329},15,59.187499999999993,5.01,296.52937499999996,281.70290624999996,14.826468749999998,0,0]
[null,"03-CASCALHAMENTO E ATERROS",null,null,null,null,null,null,null,null,null,null,null,{"$f":"CONCATENATE(\"SubTotal \",B43)","v":"SubTotal 03-CASCALHAMENTO E ATERROS"},null,null,{"$f":"SUM(Q44:Q47)","v":1277.1940298507463},null,{"$f":"SUM(S44:S47)","v":6398.7420895522391},{"$f":"SUM(T44:T47)","v":6078.8049850746265},319.93710447761191,0,0]
[null,28,{"$f":"$C$11","v":"3.3.90.30.03"},"45201","Cascalhamento - (corte, carregamento, espalhamento e compactação)+aterros",null,null,null,"m³",{"$f":"1000*6*0.15","v":900},0,0,"ESCAVADEIRA HIDRÁULICA",107.2,{"$f":"J44/N44","v":8.3955223880597014},14,117.53731343283582,{"$f":"$R$11","v":5.01},588.86194029850742,559.41884328358208,{"$f":"S44*$V$3","v":29.443097014925371},0,0]
[null,null,"3.3.90.30.03",null,null,null,null,null,null,null,0,0,"MOTONIVELADORA",null,{"$f":"J44/N44","v":8.3955223880597014},20.41,171.35261194029852,5.01,858.47658582089548,815.55275652985074,{"$f":"S45*$V$3","v":42.923829291044775},0,0]
[null,null,"3.3.90.30.03",null,null,null,null,null,null,null,0,0,"ROLO COMPACTADOR",null,{"$f":"J44/N44","v":8.3955223880597014},11.59,97.304104477611943,5.01,487.4935634328358,463.11888526119401,{"$f":"S46*$V$3","v":24.37467817164179},0,0]
[null,29,"3.3.90.30.03","97210","Transporte do cascalho e/ou material para aterro ( se o material para aterro for de outro local deve ser calculado em separado)",null,null,null,"TONELADAS",{"$f":"J44*1.98","v":1782},10,10,"CAMINHÃO BASCULANTE - 10,00 m³ ou 15,00 ton.",{"$f":"J47/O47","v":30},{"$f":"((J47/15)*(K47+L47))/40","v":59.4},15,891,5.01,4463.91,4240.7145,{"$f":"S47*$V$3","v":223.19550000000001},0,0]
[null,"04-IDENTIFICAÇÃO DA OBRA",null,null,null,null,null,null,null,null,null,null,null,{"$f":"CONCATENATE(\"SubTotal \",B48)","v":"SubTotal 04-IDENTIFICAÇÃO DA OBRA"},null,null,{"$f":"Q49+Q50","v":0},null,{"$f":"S49+S50","v":2775.73},{"$f":"T49+T50","v":0},2775.73,0,0]
[null,30,"Município","SINAPI - 103694","Suporte de madeira 3\"x3\" p/ placa sinalização, h=3,00m",null,null,null,"ud",2,0,0,0,0,0,0,0,167.69,{"$f":"J49*R49","v":335.38},0,{"$f":"S49","v":335.38},0,0]
[null,31,"Município","SINAPI - 103689","Placa de obra(para construção civil) em chapa galvanizada nº 22, adesivada 3,00x1,50 m",null,null,null,"m²",4.5,0,0,0,0,0,0,0,542.29999999999995,{"$f":"J50*R50","v":2440.35},0,{"$f":"S50","v":2440.35},0,0]
[null,"05-TOPOGRAFIA",null,null,null,null,null,null,null,null,null,null,null,{"$f":"CONCATENATE(\"SubTotal \",B51)","v":"SubTotal 05-TOPOGRAFIA"},null,null,{"$f":"Q52+Q53","v":0},null,{"$f":"S52+S53","v":41.89},{"$f":"T52+T53","v":0},0,41.89,0]
[null,32,"Serviço/Município","SINAPI - 88253","AUXILIAR DE TOPÓGRAFO COM ENCARGOS COMPLEMENTARES",null,null,null,"h",1,0,0,0,0,0,0,0,13.82,{"$f":"J52*R52","v":13.82},{"$f":"S52-U52-V52-W52","v":0},0,{"$f":"S52","v":13.82},0]
[null,33,"Serviço/Município","SINAPI - 90781","TOPOGRAFO COM ENCARGOS COMPLEMENTARES",null,null,null,"h",1,0,0,0,0,0,0,0,28.07,{"$f":"J53*R53","v":28.07},{"$f":"S53-U53-V53-W53","v":0},0,{"$f":"S53","v":28.07},0]
[null,"TOTAIS - GERAL",null,null,null,null,null,null,null,null,null,null,null,null,null,null,{"$f":"Q10+Q27+Q43+Q48+Q51","v":4300.423343362957},null,{"$f":"S10+S27+S43+S48+S51","v":32928.694750248425},{"$f":"T10+T27+T43+T48+T51","v":20467.864902735997},{"$f":"U10+U27+U43+U48+U51","v":3852.986047512421},{"$f":"V10+V27+V43+V48+V51","v":8607.8437999999987},{"$f":"W10+W27+W43+W48+W51","v":0}]
[null,"Obs.:"]
[null,"1 - Os quantitativos devem ser levandados a partir de  projetos técnicos especificos ou metodologia expedita RTV - Relatório Técnico de Vistoria;                                                                                                                                              \n2 - As operações previstas neste plano de trabalho foram extraidas do orçamento do projeto, parte integrande deste plano de trabalho\n3 - Apresentar memoria de cálculos do TRANSPORTE, e da CONTRAPARTIDA FISICA/SERVIÇOS.                                                                                           \n4 - Ex . cod. de orçamento: Obra de Pavimentação de Estrada Rural. 4490.51.04 – Obras e Instalações (51) – Obras Rodoviárias de Domínio Público (04).\n5 - Quando o municipio participar com contrapartida fisica não existe natureza de despesa (tubos, mão de obra para colocação de tubos, enrocamento de pedra de mão arrumada, topógrafia, etc). Deverá apresentar os memoriais de calculos e qual sera o serviço e/ou bem.\n6 - Não cabe aplicação de BDI no caso de repasse de recursos para a aquisição de óleo diesel."]
[]
[null,null,"Resumo fisico e financeiro "]
[null,null,"SEAB",null,"Contrapartida Município",null,null,null,null,"Valor Global"]
[null,null,"%","Total (R$)","%","Dinheiro (R$)","Fisico (R$)",null,"Total","%","(R$)"]
[null,null,null,null,null,null,"SERVIÇOS","BENS"]
[null,null,{"$f":"D62/K62","v":0.62158142185643694},{"$f":"K62-I62","v":20467.864902736008},{"$f":"I62/K62","v":0.37841857814356311},{"$f":"U54","v":3852.986047512421},{"$f":"V54","v":8607.8437999999987},{"$f":"W54","v":0},{"$f":"F62+G62+H62","v":12460.829847512419},1,{"$f":"S54","v":32928.694750248425}]
[null,"[1] O valor unitário deverá ter sido obtido por meio de orçamento devidamente detalhado em planilhas nos termos dos arts. 368 a 372 e dos arts. 484 a 486 do Decreto Estadual 10.086/2022"]
[null,"[2] Art. 669, § 1º. I, II e III, estipulou percentuais fixados de acordo com a capacidade financeira do convenente, com base nos dados do IPARDES"]

{"sheet":"Plan5 3. JUSTIFIC. e 4.BENEFIC.","index":6,"n_rows":31,"n_cols":7,"rows_kept":31,"cut":false,"hidden":false,"merged":[[1,3,1,5],[5,1,5,5],[1,1,1,2],[9,4,9,5],[9,1,10,3],[3,1,3,5],[16,1,16,3],[17,1,17,3],[18,1,18,3],[19,1,19,3],[20,1,20,3],[11,1,11,3],[12,1,12,3],[13,1,13,3],[14,1,14,3],[15,1,15,3],[29,1,29,3],[27,4,27,5],[29,4,29,5],[30,1,30,5],[21,1,21,3],[22,1,22,3],[23,1,23,3],[24,1,24,3],[25,1,25,3],[26,1,26,3],[27,1,27,3],[28,1,28,3]]}
[]
[null,null,null,"PLANO DE TRABALHO\n MELHORIA DA TRAFEGABILIDADE EM ESTRADAS RURAIS MUNICIPAIS\nÓLEO DIESEL com base no RTV - Relatório Técnico de Vistoria e Projetos Técnicos"]
[]
[null,"3. RAZÕES PARA CELEBRAÇÃO - JUSTIFICATIVA"]
[]
[null,"1. Discorrer as razões que justificam a celebração do instrumento, caracterizando (evidenciando) e indicando, entre outras:\na) interesses recíprocos entre a Seab e o Município, e o atendimento da(s) necessidade (s) da comunidade (s) a serem benficiadas;\nb) relação entre a projeto técnico apresentado, operações a serem executadas e objetivos do plano, programa, projeto ou proposta estadual ou municipal;\nc) qualificação do público alvo;\nd) problemas a serem resolvidos; \ne) resultados esperados; \nf)  Índice Desempenho Municipal (IDM/Ipardes) ou IDH - posição do Município em relação à média do Estado, ...;\ng) VBP - Principais produtos, posição do Município em relação à média do Estado, ...;\nh) Proporção de agricultores familiares em relação ao total de produtores/agricultores do município;\ni) Famílias do meio rural abaixo da linha de pobreza e/ou inscritas no CadUnico;\nj) Estrutura fundiário do município;\nk)Outras informações relevantes.\n"]
[]
[null,"4. BENEFICIÁRIOS"]
[]
[null,"Nome da(s)  comunidade(s)",null,null,"Quantidade Usuários ( *)"]
[null,null,null,null,"Diretos","Indiretos"]
[null,null,null,null,null,null,{"$f":"IF(B12<>\"\",1,0)","v":0}]
[null,null,null,null,null,null,0]
[null,null,null,null,null,null,0]
[null,null,null,null,null,null,0]
[null,null,null,null,null,null,0]
[null,null,null,null,null,null,0]
[null,null,null,null,null,null,0]
[null,null,null,null,null,null,0]
[null,null,null,null,null,null,0]
[null,null,null,null,null,null,0]
[null,null,null,null,null,null,0]
[null,null,null,null,null,null,0]
[null,null,null,null,null,null,0]
[null,null,null,null,null,null,0]
[null,null,null,null,null,null,0]
[null,null,null,null,null,null,0]
[null,"Total de Comunidades:",null,null,{"$f":"SUM(G12:G27)","v":0}]
[null,"Subtotais - usuários",null,null,{"$f":"SUM(E12:E27)","v":0},{"$f":"SUM(F12:F27)","v":0}]
[null,"Total geral de usuários",null,null,{"$f":"E29+F29","v":0}]
[null,"(*) Os beneficiários diretos são o público-alvo definido, os quais o projeto terá um impacto social direto. Beneficiários indiretos recebem impactos positivos do projeto."]

{"sheet":"Plan6 5.MET_FAS_ETA_CRON_6.METO","index":7,"n_rows":34,"n_cols":15,"rows_kept":34,"cut":false,"hidden":false,"merged":[[15,12,18,12],[15,11,18,11],[11,10,14,10],[15,1,18,1],[15,2,18,2],[15,9,18,9],[15,10,18,10],[32,1,32,12],[33,1,46,12],[20,1,21,1],[20,2,21,2],[24,1,24,12],[25,2,25,12],[26,2,26,12],[27,2,27,12],[28,2,28,12],[29,2,29,12],[31,1,31,12],[9,9,9,10],[9,11,10,11],[9,12,10,12],[11,1,14,1],[11,2,14,2],[11,5,14,5],[11,6,14,6],[11,7,14,7],[11,8,14,8],[11,9,14,9],[9,1,9,2],[9,3,10,3],[9,4,10,4],[9,5,9,6],[9,7,9,8],[13,11,14,11],[1,1,1,3],[1,5,1,12],[3,1,3,12],[5,1,5,12],[8,1,8,12]]}
[]
[]
[]
[]
[]
[null,"5. DEFINIÇÃO E DETALHAMENTO DAS METAS COM AS FASES E ETAPAS DE EXECUÇÃO E O CRONOGRAMA DE FISICO/ FINANCEIRO DA EXECUÇÃO"]
[]
[]
[null,{"$f":"CONCATENATE(\"Meta: Melhoria da trafegabilidade, por meio da execução de serviços de \", O9,\", com \",O10,\" m²\")","v":"Meta: Melhoria da trafegabilidade, por meio da execução de serviços de MANUTENÇÃO, com 75.600,00 m²"},null,null,null,null,null,null,null,null,null,null,null,null,{"$f":"'Plan2 1.DADOS,2.OBJ e 2.1.Vigên'!E35","v":"MANUTENÇÃO"}]
[null,"Fases",null,"Etapa","Especificação","Indicador Físico",null,"Custo (R$)",null,"Período de execução",null,"Responsável","Instrumentos de avaliação do cumprimento da fase ou etapa ",null,{"$f":"'[1]Plan2 1.DADOS,2.OBJ e 2.1.Vigên'!L33","v":"75.600,00"}]
[null,"nº","Descrição",null,null,"Unidade","Quantidade","Unitário - (R$)","Total (R$)","Inicio - meses","Final - após a publicação DIOE"]
[null,1,"Contratação de empresa para fornecimento de combustível - Óleo Diesel - OD",1,"Licitação","Litros",0,0,0,"A partir da publicação no DIOE","até 4 meses após a publicação","Município","Processo completo de licitação, onde consta a empresa vencedora."]
[null,null,null,2,"Liberação da primeira parcela dos recursos",null,null,null,null,null,null,"SEAB","Publicação do  Termo de  Homologação da  Licitação ser disponibilizado. Em caso de adesão (carona) a outro processo licitatório, apresentar contrato assinado e a carta de autorização do administrador da ata  assinada."]
[null,null,null,3,"Contratação",null,null,null,null,null,null,"Município","Contrato assinado com a empresa vencedora e publicação em diário oficial."]
[null,null,null,4,"Emissão da ordem de fornecimento",null,null,null,null,null,null,null,"Conforme especificado no contrato"]
[null,2,"Execução dos serviços previstos em projeto",2,"SERVIÇOS PRELIMINARES","m",0,"#","#","4º meses após a publicação","até o prazo final da execução","Município","Serviços executados conforme previsto nos RTV - relatório técnico de vistoria e projetos e em consonãncia com o cronograma de execução;\nEmissão de relatórios de medições dos serviços;\nLevantamento topográfico para aferir os serviços, se necessário;\nAs operações serão executadas concomitantemente."]
[null,null,null,3,"TERRAPLANAGEM","m",0,"#","#"]
[null,null,null,7,"DRENAGEM","m",0,"#","#"]
[null,null,null,8,"REVESTIMENTO PRMÁRIO (CASCALHO)","m",0,"#","#"]
[null,3,"Pagamento das parcelas intermediárias",1,"Prestação de contas parcial","#","#","#","#","Liberação da parcela","Compravação da aplicação da parcela anterior","Município","Apresentação de Relatórios de Execução Física e Financeira (contábil); \nComprovantes de despesas; \nRelatórios Fotográficos;"]
[null,4,"Cumprimento da meta",1,"Conclusão da execução dos serviços","#","#","#","#","Liberação da parcela única ou última parcela","Termo final do prazo de execução","Município","Medição final"]
[null,null,null,2,"Avaliação do cumprimento da meta","#","#","#","#","Termo final do prazo de execução","Termo final da vigência","Município\nSEAB","Relatório final de execução física e financeira;\nCertificado de Atingimernto dos Objetivos."]
[]
[]
[null,"6. DESCRIÇÃO DA METODOLOGIA QUE SERÁ USADA NA EXECUÇÃO DAS FASES/ETAPAS"]
[null,"Fases","6.1. Descrever as ações, os procedimentos, as técnicas e os meios que serão empregados para o atingimento das metas.   "]
[null,1,"Contratação de empresa de engenharia"]
[null,2,"Execução dos serviços previstos em projeto"]
[null,3,"Pagamento das parelas intermediárias"]
[null,4,"Avaliação do Cumprimento da meta"]
[]
[null,"6.2. Descrever, detalhadamente, a forma e frequência do acompanhamento e fiscalização da execução das metas do pactuado através dos  Responsáveis Técnicos do municipio."]
[null,"6.3. Planejamento das ações para garantir a execução da Meta*"]
[null,"* Para preencher o item 6.3, utilizar como referência o texto abaixo, o que deverá ser deletado após o preenchimento:\n1. Quais são os critérios objetivos para selecionar os trechos de estradas a receberem as melhorias (fluxo de veículos, características dos produtos a serem transportados, existência de estabelecimentos comerciais, número de propriedades ao longo do trecho, etc)?\n2. Quais as intervenções necessárias? Adequação, readequação, melhoria ou manutenção?\n3. Qual estratégia será adotada para a elaboração dos Projetos Técnicos e Relatório Técnico de Vistoria (RTV), para definição dos serviços a serem executados?\n4. Como os proprietários lindeiros serão estimulados à adoção das práticas conservacionistas (ações de educação e conscientização, como palestras, reuniões e visitas a Unidades Demonstrativas, audiências públicas, etc)? \n5. Como serão feitos o acompanhamento e a avaliação do impacto da melhoria da trafegabilidade e da adoção das práticas conservacionistas? (indicadores de trafegabilidade, rentabilidade, sustentabilidade, etc)?\n6. Existe ou se pretende alguma parceria ou suporte de outras organizações ou entidades para alcançar essa meta (exemplo: IDR, ou empresas, auxiliarão a elaboração dos projetos e RTV)?\n7. Como serão avaliados e comunicados o progresso e os resultados alcançados aos envolvidos e à comunidade em geral (relatórios, eventos, mídias sociais, etc)?\n\nÉ pertinente neste tópico a resposta a toda pergunta que auxilie o planejamento e a execução da ação que garanta que as metas sejam alcançadas, incluindo as ações apontadas no RTV para adequação do trecho, quando necessário, para que os benefícios da pavimentação da estrada sejam os maiores possíveis.\nNão esquecer a “solução como um todo”: a descrição da solução como um todo deve considerar todo o ciclo de vida do objeto executado, inclusive as questões relacionadas à manutenção, utilização, depreciação e impacto ambiental, entre outros fatores vinculados ao seu ciclo de vida, o que definirá o dispêndio a ser efetuado durante seu uso."]

{"sheet":"Plan7 7. PLA DE APL 8 Cap Int.","index":8,"n_rows":41,"n_cols":16,"rows_kept":41,"cut":false,"hidden":false,"merged":[[14,8,14,9],[15,8,15,9],[16,8,16,9],[13,8,13,9],[5,2,5,9],[11,4,13,4],[12,7,13,7],[11,5,11,7],[1,4,1,8],[6,6,6,8],[11,2,18,2],[6,9,7,9],[6,4,6,5],[11,3,13,3],[7,4,7,5],[8,4,8,5],[6,2,7,2],[6,3,7,3],[12,5,13,5],[12,6,13,6],[18,8,18,9],[10,2,10,9],[17,8,17,9],[11,8,12,9],[41,2,41,10],[19,2,19,10],[20,2,20,10],[22,2,22,10],[39,2,39,10],[40,2,40,10],[27,7,27,8],[27,9,27,10],[26,2,26,10],[27,2,27,6],[23,2,24,10]]}
[]
[null,null,null,null,"PLANO DE TRABALHO\n MELHORIA DA TRAFEGABILIDADE EM ESTRADAS RURAIS MUNICIPAIS\nÓLEO DIESEL com base no RTV - Relatório Técnico de Vistoria e Projetos Técnicos"]
[]
[null,null,"7 - PLANO DE APLICAÇÃO DOS RECURSOS FINANCEIROS COM CRONOGRAMA DE DESEMBOLSO"]
[]
[null,null,"PLANO DE APLICAÇÃO DOS RECURSOS - RESUMO DAS METAS ",null,null,null,null,null,null,null,null,null,null,"Pavimentação","Valor Base:"]
[null,null,"Descrição ","NATUREZA DE DESPESA","SEAB",null,"Contrapartida Município",null,null,"Valor Global - (R$)",null,null,null,{"$f":"'Plan2 1.DADOS,2.OBJ e 2.1.Vigên'!E35","v":"MANUTENÇÃO"},{"$f":"VLOOKUP(N7,'Plan2 1.DADOS,2.OBJ e 2.1.Vigên'!#REF!,2,0)","v":{"$error":"#REF!"}}]
[null,null,null,null,"(R$)",null,"Financeira (R$)","Bens e/ou serviços (R$)","Total  (R$)",null,null,{"$f":"TEXT('Plan4 2.3. OPERAÇÕES'!Q54,\"#.##0.000,00\")","v":"4.300,42"}]
[null,null,{"$f":"CONCATENATE(\"Contratação de empresa para fornecimento de \",L8,\" litros de combustível - Óleo Diesel - OD\")","v":"Contratação de empresa para fornecimento de 4.300,42 litros de combustível - Óleo Diesel - OD"},"3.3.90.30.03",{"$f":"'Plan4 2.3. OPERAÇÕES'!D62","v":20467.864902736008},null,{"$f":"'Plan4 2.3. OPERAÇÕES'!F62","v":3852.986047512421},{"$f":"'Plan4 2.3. OPERAÇÕES'!G62","v":8607.8437999999987},{"$f":"G9+H9","v":12460.829847512419},{"$f":"E9+I9","v":32928.694750248425}]
[]
[null,null,"CRONOGRAMA DE DESEMBOLSO"]
[null,null,"Parcelas (R$)","Número de Parcelas","Percentual (%) da execução meta 02","Valores (R$)",null,null,"LIBERAÇÃO de PARCELAS"]
[null,null,null,null,null,"SEAB","Município","Total  (R$)"]
[null,null,null,null,null,null,null,null,"PRAZOS"]
[null,null,null,1,0,0,0,{"$f":"F15+G15","v":0},"Publicação do  Termo de  Homologação da  Licitação ser disponibilizado. Em caso de adesão (carona) a outro processo licitatório, apresentar contrato assinado e a carta de autorização do administrador da ata  assinada.",null,null,null,null,null,null," x"]
[null,null,null,2,0,0,0,{"$f":"F16+G16","v":0},"Prestação de contas parcial e relatório execução da 1ª parcela"]
[null,null,null,3,0,0,0,0,"Prestação de contas parcial e relatório execução da 2ª parcela"]
[null,null,null,4,0,0,0,0,"Prestação de contas parcial e relatório execução da 3ª parcela"]
[null,null,null,"Total",{"$f":"SUM(E15:E18)","v":0},{"$f":"SUM(F15:F18)","v":0},{"$f":"SUM(G15:G18)","v":0},{"$f":"SUM(H15:H18)","v":0}]
[null,null,"Obs. (*) O Depósito da contrapartida finaceira deverá ser concomitante ao recebimento do recurso do concedente."]
[null,null,"(**) É obrigatória a apresentação da prestação de contas parcial para a liberação das parcelas"]
[]
[null,null,"8. CAPACIDADE INSTALADA DO MUNICÍPIO"]
[null,null,"a) Descrever, detalhadamente, a capacidade instalada do Município, demonstrando que é suficiente para garantir o cumprimento das obrigações acordadas e executar as atividades de forma eficaz a composição e formação da equipe técnica e operacional envolvida na execução do objeto, bem como os equipamentos (máquinas, veículos e etc...) disponíveis para tal.. Por exemplo:\na) Recursos Humanos (há pessoal qualificado e em número suficiente);\nb) Recursos Técnicos (há equipamentos, tecnologia e conhecimento técnico).\nc) Recursos Físicos (há espaços físicos, instalações e infraestrutura);\nd) Recursos Financeiros (há capacidade financeira para arcar com os custos relacionados às atividades do convênio).\nRelatar como será a execução do RTV ou Projeto técnico pela equipe (efetiva)  de forma continua ou não, evitando paralisações ou inexecução dos serviços dentro do cronograma. Preencher o quadro 8.1 Resumo da CAPACIDADE INSTALADA                                                                                                                                                                                                            "]
[]
[]
[null,null,"8.1 - RESUMO CAPACIDADE INSTALADA - (efetivo)"]
[null,null,"Equipamento",null,null,null,null,"Operador/Motorista",null,"Técnicos"]
[null,null,"Qtde.","Identificação placa ou nº de série","Tipo","Estado de conservação","Tempo disponivel para execução do objeto","Qtde.","Descrição","Qtde.","Descrição"]
[null,null,null,null,"Caminhão Basculante",null,null,null,"Operador de máquinas leve",null,"Eng. Civil"]
[null,null,null,null,"Caminhão Prancha",null,null,null,"Operador de máquinas pesadas",null,"Eng. Agrônomo"]
[null,null,null,null,"Caminhão comboio",null,null,null,"Motorista de caminhão",null,"Arquiteto"]
[null,null,null,null,"Escavadeira hidráulica",null,null,null,"Motorista de caminhão comboio",null,"Topógrafo"]
[null,null,null,null,"Motoniveladora",null,null,null,"Motorista de caminhão prancha",null,"Técnico Agrimensor/Agrícola"]
[null,null,null,null,"Pá carregadeira",null,null,null,"Motorista de veículos de apoio"]
[null,null,null,null,"Retroescavadeira",null,null,null,"Mecânico"]
[null,null,null,null,"Rolo compactador"]
[null,null,null,null,"Trator de esteira"]
[null,null,null,null,"Veiculo para a equipe técnica"]
[null,null,"Obs.: Estado de conservação Ótimo, Bom, Péssimo"]
[null,null,"Obs.: Tempo disponível para execução (I) - INTEGRAL, (P) - PARCIAL"]

{"sheet":"Plan8 Parâmetro e &","index":9,"n_rows":23,"n_cols":4,"rows_kept":23,"cut":false,"hidden":false,"merged":[[0,3,3,12],[11,1,19,12],[21,1,21,12],[22,1,36,12],[5,1,5,12],[6,1,8,12],[10,1,10,12]]}
[null,null,null,"PLANO DE TRABALHO\n MELHORIA DA TRAFEGABILIDADE EM ESTRADAS RURAIS MUNICIPAIS\nÓLEO DIESEL com base no RTV - Relatório Técnico de Vistoria e Projetos Técnicos"]
[]
[]
[]
[]
[null,"8. PARÂMETRO(S) PARA AFERIÇÃO DO CUMPRIMENTO DA META"]
[null,"Descrever a forma, modo, de avaliação dos resultados que permitirão a aferição dos resultados do convênio (ou seja, a conferência de seu objeto ter sido cumprido).\nConsiderar que para cada “problema” houve um modo, meio ou forma que o detectou ou o avaliou, sendo esse o parâmetro objetivo de avaliação.\n\nOs trechos serão classificados em Padrão A, B, C ou D, de acordo com sua condição atual, conforme os procedimentos para seleção. O cumprimento da meta será verificado pela mudança de Padrão, de acordo com a seguinte legenda:\n\n1. Padrão A: Estrada Rural com segmentos críticos, impedindo o tráfego contínuo em períodos prolongados do ano.\n2. Padrão B: Estrada Rural adequada, readequada ou melhorada, com conservação regular e pontos críticos que ainda impedem o tráfego contínuo em períodos sazonais.\n3. Padrão C: Estrada Rural adequada, readequada ou melhorada, com boa conservação, mas ainda com pontos críticos que impedem o tráfego contínuo em períodos esporádicos.\n4. Padrão D: Estrada Rural adequada, conservada, com práticas eficientes de conservação de solos e água, possibilitando o tráfego contínuo ao longo de todos os meses do ano.\n\nApós o preenchimento, deletar o texto em vermelho.\n"]
[]
[]
[]
[null,"9. COMPATIBILIDADE DOS CUSTOS COM OS PREÇOS PRATICADOS NO MERCADO"]
[null,"Elementos que demonstrem a compatibilidade dos custos com os preços praticados no mercado, por meio de “orçamentos preliminares”, especificando qual das formas de cálculo permitida, foi utilizada para fins de definição do custo (média, mediana ou menor valor)\n\nExemplo: Para evidenciar a compatibilidade dos custos com os preços praticados no mercado, foram empregados tabelas referenciais, as quais servem como uma ferramenta transparente para demonstrar a consistência entre os custos associados à obra e os preços estabelecidos para os produtos ou serviços no mercado.\nO detalhamento desses elementos em tabelas referenciais, fornece uma visão clara do processo de cálculo de custos e como esses custos estão alinhados com os preços praticados no mercado. \nApós o preenchimento, deletar o texto em vermelho."]
[]
[]
[]
[]
[]
[]
[]
[]
[]
[null,"10. RELAÇÃO CUSTO/BENEFÍCIO"]
[null,"Demonstrar que existe adequação e proporcionalidade entre o recurso público alocado e os resultados esperados (projetados) pelo seu emprego é possível por meio, de um ou mais, dos critérios abaixo:\n• A relação entre despesas e resultados deve ser computada com base em critérios claros e transparentes.\n• A transferência de recursos deve ser relevante para a satisfação de necessidades ou objetivos públicos específicos.\n• As alternativas possíveis devem ser avaliadas para identificar a opção mais apropriada e vantajosa em termos de custo-benefício.\n• Os riscos financeiros, operacionais e outros envolvidos no projeto devem ser identificados e avaliados.\n• Por outras formas possíveis de acordo com o caso concreto.\n\nExemplo: Enfatizamos que há conexão entre a alocação de recursos e os resultados esperados (projetados) e que seu emprego é de extrema relevância para atender às necessidades e interesses públicos específicos do município. Esta prática não apenas fortalece a transparência na gestão, mas também contribui para uma eficiente utilização dos recursos, garantindo que cada investimento público esteja alinhado com os objetivos estratégicos e necessidades reais da comunidade, tais como: melhorias na mobilidade e acessibilidade, oportunidades de novos negócios, melhoria na renda e qualidade de vida, impactos ambientais positivos do projeto e de  sustentabilidade a longo prazo, .....\n\nApós o preenchimento, deletar o texto em vermelho."]

{"sheet":"Planilha9_11_DOC_INTEGR_PT ","index":10,"n_rows":20,"n_cols":6,"rows_kept":20,"cut":false,"hidden":false,"merged":[[18,1,18,3],[19,1,19,3],[14,1,14,3],[15,1,15,3],[16,1,16,3],[17,1,17,3],[11,1,11,3],[12,1,12,3],[13,1,13,3],[7,1,7,3],[8,1,8,3],[9,1,9,3],[10,1,10,3],[3,1,3,3],[1,2,1,3],[4,1,4,3],[5,1,5,3],[6,1,6,3]]}
[]
[null,null,"PLANO DE TRABALHO\n MELHORIA DA TRAFEGABILIDADE EM ESTRADAS RURAIS MUNICIPAIS\nÓLEO DIESEL com base no RTV - Relatório Técnico de Vistoria e Projetos Técnicos"]
[]
[null,"11. DOCUMENTOS INTEGRANTES DO PLANO DE TRABALHO "]
[null,"11.1 Descrição do Documento"]
[null,{"$f":"CONCATENATE(\"a) Declaração de Contrapartida (FISICA OU FINANCEIRA) no valor de R$ \",F6)","v":"a) Declaração de Contrapartida (FISICA OU FINANCEIRA) no valor de R$ 3.852,99"},null,null,null,{"$f":"TEXT('Plan4 2.3. OPERAÇÕES'!F62,\"#.##0,00\")","v":"3.852,99"}]
[null,"b) Orçamentos devidamente detalhado em planilha nos termos dos arts.368 a 372 e dos atrs. 484 a 486 do decreto Estadual 10.086/2022."]
[null,"C) Outros documentos necessários para execução do objeto (Caracterizar os documentos)"]
[]
[null,"11.2 PARA OBRAS OU SERVIÇOS DE ENGENHARIA E ARQUITETURA "]
[null,"a) Projeto Básico e/ou Executivo da Obra "]
[null,"Projeto terraplanagem, "]
[null,"Projeto de Drenagem, (quando indicado  no RTV),"]
[null,"Projeto de Pavimentação (Revestimento primário - Cascalho)"]
[null,"Memoriais de cálculos, (DMT,.....)"]
[null,"Memorial descritivo"]
[null,"b) Planilha de Custos da Obra (expressando a composição dos custos unitários ou fundamentado em quantitativos de obras, serviços)."]
[null,"c) Anotações e/ou Registros de Responsabilidade Técnica de ELABORAÇÃO, FISCALIZAÇÃO  e  EXECUÇÃO dos projetos e orçamentos, dos respectivos conselhos de classe CAU ou CREA."]
[null,"e) Relatório de impactos ambientais e/ou licenças ambientais, quando exigido pelos órgãos competentes (se houver ) ."]
[null,"f) Apresentar cópia do plano diretor do municipio, com o mapa  do sistema viário rural contemplando, a estrada a ser pavimentada, não serão aceitos trechos estradas dentro de perimetro urbano. Na ausencia deste, apresentar documento oficial da posse e da área de dominio da estrada, e anuência  nos casos de estradas a serem trabalhadas pertencer a União ou Estado."]

{"sheet":"Plan10_OBR_MONI_AVAL_P.CONTAS","index":11,"n_rows":17,"n_cols":3,"rows_kept":17,"cut":false,"hidden":false,"merged":[[1,2,1,11],[13,1,13,11],[16,1,16,11],[6,1,6,11],[15,1,15,11],[14,1,14,11],[10,1,10,11],[11,1,11,11],[12,1,12,11],[3,1,3,11],[5,1,5,11],[7,1,7,11],[8,1,8,11],[9,1,9,11],[4,1,4,11]]}
[]
[null,null,"PLANO DE TRABALHO\n MELHORIA DA TRAFEGABILIDADE EM ESTRADAS RURAIS MUNICIPAIS\nÓLEO DIESEL com base no RTV - Relatório Técnico de Vistoria e Projetos Técnicos"]
[]
[null,"12. OBRIGAÇÕES"]
[null,"DO MONITORAMENTO, AVALIAÇÃO E DA PRESTAÇÃO DE CONTAS "]
[null,"1. O CONVENENTE TOMADOR realizará a prestação de contas através do Sistema Integrado de Transferências do TCE (SIT) conforme previsões das resoluções nº 28/2011, 46/2014 e a Instrução Normativa 61/2011 e as Cláusulas do Convênio"]
[null,"2.  Cópia de ata da homologação do processo licitatório, contrato, CNO - Cadastro Nacional de Obras, licença ambiental do fornecedor ( pedreira)  do material a ser utilizado na pavimentação."]
[null,"3. O CONVENENTE TOMADOR, apresentará as informações dos resultados alcançados sob os aspectos técnicos e financeiros obtidos com a execução do objeto da parceria na seguinte forma e periodicidade:"]
[null,"3.1)    Bimestralmente, anualmente, a cada liberação de parcela (R$)e após a Conclusão do Convênio  por meio de: "]
[null,"a.  Relatório de Execução do Objeto (PARCIAL E FINAL): documento que descreverá as atividades desenvolvidas, comparativo das metas propostas e resultados alcançados, acompanhado do respectivo material comprobatório. ( mapas de medição e notas fiscais comprobatórias, fotos e filmagens)"]
[null,"b.  Relatório de Execução Financeira (PARCIAL E FINAL): documento que relaciona os pagamentos efetuados em face das despesas previstas neste Plano de Trabalho e a conciliação bancária aferida pela correlação entre despesas constantes na relação de pagamentos e os débitos efetuados na conta corrente específica da parceria e devidos nexos de causalidade entre umas e outras, sua conformidade e o cumprimento das normas pertinentes."]
[null,"c.  Cópia do Extratos Bancários (conta aplicação e conta corrente);"]
[null,"d. Devera ser encaminhado a SEAB a CND a obra, até 30 (trinta) dias após a conclusão da execução do objeto do convênio, previsto no projeto e plano de trabalho;"]
[null,"e.  Comprovante de recolhimento de saldo ao Tesouro Estadual (se necessário ou houver)"]
[null,"4. O CONCEDENTE - deverá efetuar fiscalização bimenstralmente e ou quando necessário, gerando  TAF - Termo de Acompanhamento e Fiscalização, e se for o caso folha de informação. "]
[null,"a . Quando da fiscalização da SEAB, for verificado inconformidades, devera o fiscal informar o gestor passando a este cópia do TAF - Termo de acompanhamento e fiscalização para que o gestor tome as providencias necessárias, ou seja, proceder a notificação ao Tomador (municipio). "]
[null,"b. O envio dos documentos (TAFs, folha de informação da Divisão de Apoio Técnico do DEAGRO/SEAB, e notificações) e relatórios previstos no item 3 será feito de forma eletrônica através do e-protocolo, deverá ser enviado ao NUCONV para anexar ao e-protocolo do termo de convênio."]

{"sheet":"Plan11_ASSINATURAS","index":12,"n_rows":66,"n_cols":15,"rows_kept":66,"cut":false,"hidden":false,"merged":[[65,1,65,6],[55,1,55,6],[58,1,58,10],[61,1,63,6],[64,1,64,6],[59,1,60,10],[46,1,48,6],[49,1,49,6],[50,1,50,10],[51,1,53,6],[54,1,54,6],[41,1,41,2],[41,3,41,10],[43,1,43,10],[44,1,44,10],[45,1,45,10],[30,8,33,10],[31,2,31,7],[32,2,32,7],[33,2,33,7],[34,2,34,7],[34,8,34,10],[19,2,19,7],[19,8,19,10],[21,1,21,10],[22,2,22,7],[22,8,25,10],[23,2,23,7],[24,2,24,7],[25,2,25,7],[7,5,7,7],[8,2,8,7],[13,8,18,10],[14,2,14,7],[15,1,15,4],[15,5,15,7],[16,2,16,7],[17,2,17,7],[18,2,18,7],[26,2,26,7],[26,8,26,10],[29,1,29,10],[30,2,30,7],[1,3,1,10],[1,1,1,2],[9,2,9,7],[9,8,9,10],[11,1,11,10],[12,1,12,10],[13,2,13,7],[3,1,3,10],[4,1,4,10],[5,2,5,7],[5,8,8,10],[6,2,6,7]]}
[]
[null,null,null,"PLANO DE TRABALHO\n MELHORIA DA TRAFEGABILIDADE EM ESTRADAS RURAIS MUNICIPAIS\nÓLEO DIESEL com base no RTV - Relatório Técnico de Vistoria e Projetos Técnicos"]
[]
[null,"13. DECLARAÇÃO DO RESPONSÁVEL TÉCNICO PELO PLANO DE APLICAÇÃO FINANCEIRA"]
[null,"Declaro, para fins de prova junto à SEAB, estar de acordo com o plano de aplicação dos recursos deste Plano de Trabalho."]
[null,"Nome:",null,null,null,null,null,null,"__________________________"]
[null,"Cargo:","CONTADOR"]
[null,"N.º Registro Conselho de Classe:",null,null,null,"CRC: xxxx"]
[null,"Local:","XXXXXX"]
[null,"Data:"," __ /__ /2024",null,null,null,null,null,"Assinatura"]
[]
[null,"14. RESPONSÁVEL TÉCNICO PELA ELABORAÇÃO DO PLANO DE TRABALHO"]
[null,{"$f":"CONCATENATE(N13,N14)","v":"O presente Plano de Trabalho foi por mim elaborado de acordo com as normas técnicas aplicáveis e está compatível com as prioridades de atendimento da agricultura familiar e com os recursos financeiros destinados pelo Projeto de Pavimentação com MANUTENÇÃO"},null,null,null,null,null,null,null,null,null,null,null,"O presente Plano de Trabalho foi por mim elaborado de acordo com as normas técnicas aplicáveis e está compatível com as prioridades de atendimento da agricultura familiar e com os recursos financeiros destinados pelo Projeto de Pavimentação com "]
[null,"Nome:",null,null,null,null,null,null,"__________________________",null,null,null,null,{"$f":"'Plan2 1.DADOS,2.OBJ e 2.1.Vigên'!E35","v":"MANUTENÇÃO"}]
[null,"Cargo:","ENGENHEIRO (a) CIVIL"]
[null,"N.º Registro Conselho de Classe:",null,null,null,"CREA PRXXXXX/D"]
[null,"Local:","XXXXXX"]
[null,"Nº telefone"]
[null,"e-mail"]
[null,"Data:"," __ /__ /2024",null,null,null,null,null,"Assinatura"]
[]
[null,"15. APROVAÇÃO DO PREFEITO"]
[null,"Nome:",{"$f":"'[2]Plan2 1.DADOS,2.OBJ e 2.1.Vigên'!C15:I15","v":"XXXXXXXXX"},null,null,null,null,null,"__________________________"]
[null,"Cargo:","PREFEITO MUNICIPAL"]
[null,"CPF (LGPD):",{"$f":"'[2]Plan2 1.DADOS,2.OBJ e 2.1.Vigên'!C16:D16","v":"XXXXXXXXX"}]
[null,"Local:",{"$f":"'[2]Plan2 1.DADOS,2.OBJ e 2.1.Vigên'!C6:I6","v":"XXXXXXXXXXX"}]
[null,"Data:"," __ /__ /2024",null,null,null,null,null,"Assinatura"]
[null,"LGPD - Lei Geral de Proteção de Dados Pessoais, Lei nº 13.709/2018,"]
[]
[null,"16 - ASSINATURA DO GESTOR DO CONVÊNIO PELA SEAB (Chefe do NR)"]
[null,"Nome:","XXXXXXXXXXXXXXX",null,null,null,null,null,"__________________________"]
[null,"Cargo","CHEFE DO NÚCLEO REG. SEAB/XXXXXX"]
[null,"CPF (LGPD):","XXXXXXXXXXXXXXX"]
[null,"Local:","XXXXXXXXXXXXXXX"]
[null,"Data:"," __ /__ /2024",null,null,null,null,null,"Assinatura"]
[null,"LGPD - Lei Geral de Proteção de Dados Pessoais, Lei nº 13.709/2018,"]
[]
[]
[]
[]
[]
[null,null,null,"PROGRAMA ESTRADAS DA INTEGRAÇÃO  PROJETO DE ADEQUAÇÃO, READEQUAÇÃO, MAUTENÇÃO E OU MELHORIAS DE ESTRADAS RURAIS MUNICIPAIS - CUSTEIO SOMENTE ÓLEO DIESEL COM BASE EM  RTV - Relatório Técnico de Vistoria e Projetos Técnicos"]
[]
[null,"17.  MANIFESTAÇÃO TÉCNICA DO DEAGRO – SEDE"]
[null,"Atestamos, para os devidos fins, que este Plano de Trabalho se encontra em condições técnicas para a sua aprovação pelo Sr. Secretário da Agricultura e do Abastecimento."]
[null,"17.1. Técnico do DEAGRO-Sede."]
[null,"________________________________________"]
[]
[]
[null,"(Assinatura: nome, registro no conselho de classe)",null,null,null,null,null,null,"Curitiba,  __ /__ /2024"]
[null,"17.2. Chefe do Departamento de Desenvolvimento Rural Sustentável - DEAGRO."]
[null,"______________________________________"]
[]
[]
[null,"Márcio da Silva",null,null,null,null,null,null,"Curitiba,  __ /__ /2024"]
[null,"CREA-SC 7.857/D"]
[]
[]
[null,"18. APROVAÇÃO DA SEAB"]
[null,{"$f":"CONCATENATE(O60,N14,O61)","v":"Aprovamos, para os devidos fins, este Plano de Trabalho por encontrar-se em conformidade com as diretrizes do Projeto de MANUTENÇÃO, estando apto para sua efetivação via convênio."},null,null,null,null,null,null,null,null,null,null,null,null,"Aprovamos, para os devidos fins, este Plano de Trabalho por encontrar-se em conformidade com as diretrizes do Projeto de "]
[null,null,null,null,null,null,null,null,null,null,null,null,null,null,", estando apto para sua efetivação via convênio."]
[null,"________________________________________"]
[]
[]
[null,"Secretário de Estado da Agricultura e do Abastecimento.",null,null,null,null,null,null,"Curitiba,  __ /__ /2024"]
[null,"Norberto Anacleto Ortigara"]

{"sheet":"Municipios","index":13,"n_rows":401,"n_cols":9,"rows_kept":401,"cut":false,"hidden":true,"merged":[]}
["Município","Índice IPARDES 2021","Contrapartida Mínima","Núcleo Regional","CNPJ","Credor","Endereço Prefeitura","Cep Prefeitura","Prefeito"]
["Abatiá",0.69398484570270458,"5%","Cornélio Procópio","75.743.567/0001-57",214799,"Av. João Carvalho Mello, 135, Centro","86.460-000","Nelson Garcia Junior"]
["Adrianópolis",0.64804302597985686,"5%","Curitiba","76.105.642/0001-17",102344,"Av. Marechal Mascarenhas de Morães, 115, Centr","83.490-000","Vandir de Oliveira Rosa"]
["Agudos do Sul",0.63719632024833683,"5%","Curitiba","76.105.667/0001-10",147555,"Av. Brasil, 38, Centro","83.850-000","Jesse da Rocha Zoellner"]
["Almirante Tamandaré",0.62891538512308487,"5%","Curitiba","76.105.659/0001-74",119789,"Av. Emílio Jonhson, 360, Centro","83.501-000","Gerson Denilson Colodel"]
["Altamira do Paraná",0.74667674184605204,"10%","Campo Mourão","78.069.143/0001-47",119790,"R. Cantú, 180, Centro","85.280-000","José Etevaldo de Oliveira"]
["Altônia",0.74074010556577408,"10%","Umuarama","81.478.059/0001-91",119791,"R. Rui Barbosa, 815, Centro","87.550-000","Claudenir Gervasone"]
["Alto Paraíso",0.6819360693187656,"5%","Umuarama","95.640.736/0001-30",119792,"Av. Pedro Amaro dos Santos, 900, Centro","87.528-000","Dércio Jardim Junior"]
["Alto Paraná",0.70713959757004285,"10%","Paranavaí","76.279.967/0001-16",119793,"R. José Anchieta, 1641, Centro","87.750-000","Claudemir Joia Pereira"]
["Alto Piquiri",0.75810472347450364,"10%","Umuarama","76.247.352/0001-08",122329,"R. Santos Dumont, 341, Centro","87.580-000","Giovane Mendes de Carvalho"]
["Alvorada do Sul",0.69390252229002225,"5%","Londrina","75.132.860/0001-88",119794,"Praça Prefeito Antonio de Souza Lemos, 32, Centro","86.150-000","Marcos Antonio Voltarelli"]
["Amaporã",0.70616800956619541,"10%","Paranavaí","75.475.038/0001-10",119795,"R. Sete de Setembro, 21, Centro","87.850-000","Mauro Lemos"]
["Ampére",0.79009541592948984,"10%","Francisco Beltrão","77.817.054/0001-79",122333,"R. Maringá, 279, Centro","85.640-000","Disnei Luquini"]
["Anahy",0.7474501873661491,"10%","Cascavel","95.594.800/0001-94",147565,"R. Vereador Leonardo Aparecido Dobicz, 591, Centro","85.425-000","Carlos Antonio Reis"]
["Andirá",0.71927552259108252,"10%","Cornélio Procópio","76.235.761/0001-94",119796,"R. Mauro Cardoso de Oliveira, 190, Jardim Vesper","86.380-000","Ione Elisabeth Alves Abib"]
["Ângulo",0.74899389645213255,"10%","Maringá","95.642.286/0001-15",122334,"Av. Valério Osmar Estevão, 72, Centro","86.755-000","Rogerio Aparecido Bernardo"]
["Antonina",0.58962938274543031,"5%","Paranaguá","76.022.516/0001-07",119797,"R. Xv de Novembro, 150, Centro","83.370-000","José Paulo Vieira Azim"]
["Antônio Olinto",0.71284716887780653,"10%","União da Vitória","76.020.460/0001-43",122335,"Av. Reinaldo Machiavelli, 202, Centro","83.980-000","Alan Jaros"]
["Apucarana",0.77844189809985831,"10%","Apucarana","75.771.253/0001-68",119798,"Praça Centro Cívico José de Oliveira Rosa, 25, Centro","86.800-235","Sebastião Ferreira Martins Junior"]
["Arapongas",0.78313426559080757,"10%","Apucarana","76.958.966/0001-06",119799,"R. Garças, 750, Centro","86.700-285","Sergio Onofre da Silva"]
["Arapoti",0.75490194975987546,"10%","Ponta Grossa","75.658.377/0001-31",119800,"R. Placídio Leite, 148, Centro Cívico","84.990-000","Irani Jose Barros"]
["Arapuã",0.72761637295397275,"10%","Ivaiporã","01.612.388/0001-44",119801,"R. Presidente Café Filho, 1410, Recanto Feliz","86.884-000","Deodato Matias"]
["Araruna",0.77558230044619858,"10%","Campo Mourão","75.359.760/0001-99",119802,"Praça Nossa Senhora do Rocio, 390, Centro","87.260-000","Leandro Cesar de Oliveira"]
["Araucária",0.80476115016111205,"10%","Curitiba","76.105.535/0001-99",119803,"R. Pedro Druszcz, 111, Centro","83.702-080","Hissam Hussein Dehaini"]
["Ariranha do Ivaí",0.77315498229902391,"10%","Ivaiporã","01.612.453/0001-31",119804,"R. Miguel Verenka, 14, Centro","86.880-000","Thiago Epifanio da Silva"]
["Assaí",0.74906169696208691,"10%","Cornélio Procópio","76.290.709/0001-30",119805,"Av. Rio de Janeiro, 720, Centro","86.220-000","Michel Angelo Bomtempo"]
["Assis Chateaubriand",0.7497926536797842,"10%","Toledo","76.208.479/0001-18",119806,"Av. Cívica, S/N","85.935-000","Valter Aparecido Souza Correia"]
["Astorga",0.76772818206556659,"10%","Maringá","75.743.377/0001-30",119807,"Av. Doutor José Soares de Azevedo, 48, Centro","86.730-000","Suzie Aparecida Pucillo Zanatta"]
["Atalaia",0.73616759467706994,"10%","Maringá","75.731.018/0001-62",122336,"Praça José Bento dos Santos, 02, Centro","87.630-000","Carlos Eduardo Armelin Mariani"]
["Balsa Nova",0.70286426741205954,"10%","Curitiba","76.105.527/0001-42",147583,"Av. Brasil, 665, Centro","83.650-000","Marcos Antonio Zanetti"]
["Bandeirantes",0.74645416709359802,"10%","Cornélio Procópio","76.235.753/0001-48",147584,"R. Frei Rafael Proner, 1457, Centro","86.360-000","Jaelson Ramalho Matta"]
["Barbosa Ferraz",0.72025143577624673,"10%","Campo Mourão","76.950.062/0001-26",119808,"Av. Presidente Kennedy, 363, Centro","86.960-000","Edenilson Aparecido Miliossi"]
["Barracão",0.68253097204076141,"5%","Francisco Beltrão","75.666.131/0001-01",122337,"R. São Paulo, 235, Centro","85.700-000","Jorge Luiz Santin"]
["Barra do Jacaré",0.75143006445307259,"10%","Jacarezinho","76.407.568/0001-93",119809,"R. Rui Barbosa, 96, Centro","86.385-000","Edimar de Freitas Alboneti"]
["Bela Vista da Caroba",0.69860030837866305,"5%","Francisco Beltrão","01.612.441/0001-07",119810,"Av. Rio de Janeiro, 1021, Centro","85.745-000","Gelson Maffi"]
["Bela Vista do Paraíso",0.70647179363440193,"10%","Londrina","76.245.067/0001-58",119811,"R. Joaquim Ladeia, 150, Centro","86.130-000","Fabricio Pastore"]
["Bituruna",0.72522683714632696,"10%","União da Vitória","81.648.859/0001-03",119812,"Av. Doutor Oscar Geyer, 489, Centro","84.640-000","Rodrigo Rossoni"]
["Boa Esperança",0.78521977321192715,"10%","Campo Mourão","76.217.017/0001-67",119813,"Av. Brasil, 361, Centro","87.390-000","Joel Celso Buscariol"]
["Boa Esperança do Iguaçu",0.77313615844882799,"10%","Dois Vizinhos","95.589.255/0001-48",122338,"R. Demétrio Pinzon, 16, Centro","85.680-000","Givanildo Trumi"]
["Boa Ventura de São Roque",0.72784986029497201,"10%","Pitanga","01.612.906/0001-20",119814,"R. Moisés Miranda, 422, Centro","85.225-000","Edson Flavio Hoffmann"]
["Boa Vista da Aparecida",0.73929781557615692,"10%","Cascavel","78.121.985/0001-09",122339,"Av. Cícero Barbosa Sobrinho, 1190, Centro","85.780-000","Leonir Antunes dos Santos"]
["Bocaiúva do Sul",0.62169269495429047,"5%","Curitiba","76.105.592/0001-78",133465,"R. Carlos Alberto Ribeiro, 21, Centro","83.450-000","Antonio Luiz Gusso"]
["Bom Jesus do Sul",0.74195509563849438,"10%","Francisco Beltrão","01.612.443/0001-04",119815,"Av. Ipiranga, 72, Centro","85.708-000","Helio José Surdi"]
["Bom Sucesso",0.72582388606331349,"10%","Apucarana","75.771.261/0001-04",120030,"Praça Paraná, 77, Centro","86.940-000","Raimundo Severiano de Almeida Junior"]
["Bom Sucesso do Sul",0.75402536699759304,"10%","Pato Branco","80.874.100/0001-86",119816,"R. Cândido Merlo, 290, Centro","85.515-000","Nilson Antonio Feversani"]
["Borrazópolis",0.73957568328619017,"10%","Ivaiporã","75.740.829/0001-20",119817,"Praça da República, 28, Centro","86.925-000","Dalton Fernandes Moreira"]
["Braganey",0.76515914318966782,"10%","Cascavel","78.121.902/0001-73",119818,"Av. Arthur Pereira, 860, Centro","85.430-000","Odair Guerreiro Oliveira"]
["Brasilândia do Sul",0.65701994467442792,"5%","Umuarama","95.640.520/0001-75",119819,"Av. Adão Arcângelo Dal Bem, 882, Centro","87.595-000","Alex Antonio Cavalcante"]
["Cafeara",0.76624902534051265,"10%","Londrina","75.845.545/0001-06",119820,"Av. Brasil, 188, Centro","86.640-000","Elton Fabio Lazaretti"]
["Cafelândia",0.82290857851994204,"10%","Cascavel","78.121.878/0001-72",119821,"R. Vereador Luiz Picolli, 299, Centro","85.415-000","Culestino Kiara"]
["Cafezal do Sul",0.72273811325107484,"10%","Umuarama","95.640.652/0001-05",119822,"Av. Ítalo Orcelli, 604, Centro","87.565-000","Mario Junio Kazuo da Silva"]
["Califórnia",0.73649238607521017,"10%","Apucarana","75.771.279/0001-06",119823,"R. 17 de Dezembro, 149, Centro","86.820-000","Paulo Wilson Mendes"]
["Cambará",0.70942993037924706,"10%","Jacarezinho","75.442.756/0001-90",122340,"Av. Brasil, 1229, Centro","86.390-000","José Salim Haggi Neto"]
["Cambé",0.76294842886031666,"10%","Londrina","75.732.057/0001-84",122341,"R. Otto Gaertner, 65, Centro","86.181-900","Conrado Angelo Scheller"]
["Cambira",0.81515659066061419,"10%","Apucarana","75.771.287/0001-52",122342,"Av. Canadá, 320, Centro","86.890-000","Emerson Toledo Pires"]
["Campina da Lagoa",0.7104951924648043,"10%","Campo Mourão","76.950.070/0001-72",119824,"R. Vereador Homero Franco, 851, Centro","87.345-000","Milton Luiz Alves"]
["Campina do Simão",0.68945567850263068,"5%","Guarapuava","01.611.489/0001-09",119825,"R. José Pedro Seleme, 3516, Centro","85.148-000","Andre Junior de Paula"]
["Campina Grande do Sul",0.71681942903178886,"10%","Curitiba","76.105.600/0001-86",147471,"Praça Bento Munhoz da Rocha Neto, 30, Centro","83.430-000","Bihl Elerian Zanetti"]
["Campo Bonito",0.76921922131159015,"10%","Cascavel","80.869.621/0001-45",119826,"R. Prefeito Darcísio Roberto Grassi, 252, Centro","85.450-000","Mario Weber"]
["Campo do Tenente",0.66942267145426282,"5%","Curitiba","76.002.658/0001-02",147618,"Av. Miguel Komarchewski, 900, Centro","83.870-000","Weverton Willian Vizentin"]
["Campo Largo",0.75896902432084412,"10%","Curitiba","76.105.618/0001-88",119827,"Av. Padre Natal Pigatto, 925, Vila Bancária","83.601-630","Mauricio Roberto Rivabem"]
["Campo Magro",0.69709196272018659,"5%","Curitiba","01.607.539/0001-76",131883,"Rodovia Gumercindo Boza, 2823, Centro","83.535-000","Claudio Cesar Casagrande"]
["Campo Mourão",0.81594192212452532,"10%","Campo Mourão","75.904.524/0001-06",119828,"R. Brasil, 1487, Centro","87.301-140","Tauillo Tezelli"]
["Cândido de Abreu",0.59958500347921251,"5%","Pitanga","76.175.926/0001-80",120031,"Av. Paraná, 3, Centro","84.470-000","Renan Menck Romanichen"]
["Candói",0.72869471462563251,"10%","Guarapuava","95.684.478/0001-94",119829,"R. Xv de Novembro, 1761, Centro","85.140-000","Aldoino Goldoni Filho"]
["Cantagalo",0.6767404842818171,"5%","Guarapuava","78.279.981/0001-45",119830,"R. Cinderela, 379, Centro","85.160-000","João Konjunski"]
["Capanema",0.78320559640356946,"10%","Francisco Beltrão","75.972.760/0001-60",119831,"Av. Pedro Viriato Parigot de Souza, 1080, Cent","85.760-000","Américo Bellé"]
["Capitão Leônidas Marques",0.76552033284239795,"10%","Cascavel","76.208.834/0001-59",122343,"Av. Trancredo Neves, 502, Centro","85.790-000","Maxwell Scapini"]
["Carambeí",0.78927759518169249,"10%","Ponta Grossa","01.613.765/0001-60",119832,"Av. do Ouro , 1335, Nova Carambeí","84.145-000","Elisangela Pedroso de Oliveira Nunes"]
["Carlópolis",0.6997152644386575,"5%","Jacarezinho","76.965.789/0001-87",119833,"R. Benedito Salles, 1060, Centro","86.420-000","Hiroshi Kubo"]
["Cascavel",0.82655435716644188,"10%","Cascavel","76.208.867/0001-07",119834,"R. Paraná, 5000, Centro","85.810-011","Leonaldo Paranhos da Silva"]
["Castro",0.7606249730553033,"10%","Ponta Grossa","77.001.311/0001-08",119835,"Praça Pedro Kaled, 22, Centro","84.165-540","Moacyr Elias Fadel Junior"]
["Catanduvas",0.71096616850195316,"10%","Cascavel","76.208.842/0001-03",119836,"Av. dos Pioneiros, 500, Centro","85.470-000","Moises Aparecido de Souza"]
["Centenário do Sul",0.77761361355575265,"10%","Londrina","75.845.503/0001-67",122344,"Praça Aurélio Basso, 378, Centro","86.630-000","Melquiades Tavian Junior"]
["Cerro Azul",0.58828109896249658,"5%","Curitiba","76.105.626/0001-24",214805,"R. Barão do Cerro Azul, 63, Centro","83.570-000","Patrik Magari"]
["Céu Azul",0.78771635927694994,"10%","Cascavel","76.206.473/0001-01",119837,"Av. Nilo Umberto Deitos, 1426, Centro","85.840-000","Laurindo Sperotto"]
["Chopinzinho",0.77167268794654975,"10%","Pato Branco","76.995.414/0001-60",119838,"R. Miguel Procópio Kurpel, 3811, São Miguel","85.560-000","Edson Luiz Cenci"]
["Cianorte",0.81991195511455561,"10%","Cianorte","76.309.806/0001-28",122345,"Praça Centro Cívico, 100, Centro Cívico","87.200-000","Marco Antonio Franzato"]
["Cidade Gaúcha",0.75350369498881919,"10%","Cianorte","75.377.200/0001-67",122346,"R. Juscelino Kubitschek de Oliveira, 2394, Centro","87.820-000","Henrique Domingues"]
["Clevelândia",0.66284729702385992,"5%","Pato Branco","76.161.199/0001-00",119839,"Praça Getúlio Vargas, 71, Centro","85.530-000","Rafaela Martins Losi"]
["Colombo",0.71379708102924255,"10%","Curitiba","76.105.634/0001-70",133441,"R. Xv de Novembro, 105, Centro","83.414-000","Helder Luiz Lazarotto"]
["Colorado",0.75015913158934311,"10%","Maringá","76.970.326/0001-03",122347,"Av. Brasil, 1250, Centro","86.690-000","Marcos José Consalter de Mello"]
["Congonhinhas",0.65836640146614755,"5%","Cornélio Procópio","75.825.828/0001-88",147436,"Av. Doutor David Xavier da Silva, 266, Centro","86.320-000","José Olegário Ribeiro Lopes"]
["Conselheiro Mairinck",0.69961958058096341,"5%","Jacarezinho","75.968.412/0001-19",122412,"Praça Otacílio Ferreira, 82, Centro","86.480-000","Alex Sandro Pereira Costa Domingues"]
["Contenda",0.68332777405676293,"5%","Curitiba","76.105.519/0001-04",147484,"Av. João Franco, 400, Centro","83.730-000","Antonio Adamir Digner"]
["Corbélia",0.7388934474497888,"10%","Cascavel","76.208.826/0001-02",133427,"R. Amor Perfeito, 1616, Centro","85.420-000","Giovani Miguel Wolf Hnatuw"]
["Cornélio Procópio",0.7544633464084477,"10%","Cornélio Procópio","76.331.941/0001-70",119840,"Av. Minas Gerais, 301, Centro","86.300-000","Amin José Hannouche"]
["Coronel Domingos Soares",0.68637084870867415,"5%","Pato Branco","01.614.415/0001-18",119841,"Av. Araucária, 3120, Centro","85.557-000","Jandir Bandiera"]
["Coronel Vivida",0.76137764674658059,"10%","Pato Branco","76.995.455/0001-56",119842,"Praça Angelo Mezzomo, S/N, Centro","85.550-000","Anderson Manique Barreto"]
["Corumbataí do Sul",0.69177807748764364,"5%","Campo Mourão","80.888.662/0001-89",119843,"R. Tocantins, 153, Centro","86.970-000","Alexandre Donato"]
["Cruzeiro do Iguaçu",0.67368620047092109,"5%","Dois Vizinhos","95.589.230/0001-44",119844,"Av. 13 de Maio, 906, Centro","85.598-000","Leonir Antônio Gelhen"]
["Cruzeiro do Oeste",0.74302078472336175,"10%","Umuarama","76.381.854/0001-27",119845,"R. João Ormindo de Resende, 686, Centro","87.400-000","Maria Helena Bertoco Rodrigues"]
["Cruzeiro do Sul",0.74713347297421728,"10%","Paranavaí","75.731.034/0001-55",122348,"Av. Gastão Vidigal, 600, Centro","87.650-000","Marcos César Sugigan"]
["Cruz Machado",0.66034521596793727,"5%","União da Vitória","76.339.688/0001-09",119846,"Av. Vitória, 251, Centro","84.620-000","Antonio Luis Szaykowski"]
["Cruzmaltina",0.75459972560928401,"10%","Ivaiporã","01.615.393/0001-00",119847,"Av. Padre Gualter Farias Negrão, 40, Centro","86.855-000","Natal Casavechia"]
["Curitiba",0.88403078709324412,"10%","Curitiba","76.417.005/0001-86",14,"Palácio 29 de Março - Av. Cândido de Abreu, 81","80.530-908","Rafael Valdomiro Greca de Macedo"]
["Curiúva",0.64854202166567931,"5%","Jacarezinho","76.167.725/0001-30",119849,"Av. Antônio Cunha, 81, Centro","84.280-000","Natanael Moura dos Santos"]
["Diamante D'Oeste",0.76016483268869728,"10%","Cascavel","77.817.476/0001-44",119850,"R. Marechal Castelo Branco, 597, Centro","85.896-000","Guilherme Pivatto Junior"]
["Diamante do Norte",0.68558834053274476,"5%","Paranavaí","76.972.082/0001-06",119851,"R. José Vicente, 257, Centro","87.990-000","Eliel dos Santos Correa"]
["Diamante do Sul",0.67584960478541267,"5%","Laranjeiras Do Sul","95.595.120/0001-95",122349,"Av. Getúlio Vargas, S/N, Centro","85.408-000","Darci Tirelli"]
["Dois Vizinhos",0.83892485862941146,"10%","Dois Vizinhos","76.205.640/0001-08",119852,"Av. Rio Grande do Sul, 130, Centro","85.660-000","Luis Carlos Turatto"]
["Douradina",0.82737784237110146,"10%","Umuarama","78.200.110/0001-94",119853,"Av. Barão do Rio Branco, 767, Centro","87.485-000","Oberdam José de Oliveira"]
["Doutor Camargo",0.73707736037221305,"10%","Maringá","76.282.714/0001-00",120028,"R. Xavier da Silva, 1000, Centro","87.155-000","Édilen Henrique Xavier"]
["Doutor Ulysses",0.48402440936663482,"1%","Curitiba","95.422.911/0001-13",122350,"R. Olívio Gabriel de Oliveira, 10, Centro","83.590-000","Moiseis Branco da Silva"]
["Enéas Marques",0.72663854272413941,"10%","Francisco Beltrão","76.205.657/0001-57",119854,"Av. Joaquim Bonetti, 579, Centro","85.630-000","Edson Lupatini"]
["Engenheiro Beltrão",0.75715757434585418,"10%","Campo Mourão","76.950.039/0001-31",119855,"R. Manoel Ribas, 160, Centro","87.270-000","Adalmir José Garbim Junior"]
["Entre Rios do Oeste",0.73128197859345834,"10%","Toledo","95.719.449/0001-10",119856,"R. Tocantins, 600, Centro","85.988-000","Ari Aloisio Maldaner"]
["Esperança Nova",0.7681597563739776,"10%","Umuarama","01.612.269/0001-91",119857,"Av. Juvenal Silva Braga, 400, Centro","87.545-000","Everton Barbieri"]
["Espigão Alto do Iguaçu",0.68588746478853135,"5%","Laranjeiras Do Sul","01.612.634/0001-68",119858,"Av. Brasília, 551, Centro","85.465-000","Agenor Bertoncelo"]
["Farol",0.70764266242249407,"10%","Campo Mourão","95.640.124/0001-48",122351,"R. Bahia, 880, Centro","87.325-000","Oclecio de Freitas Meneses"]
["Faxinal",0.72126949852345679,"10%","Ivaiporã","75.771.295/0001-07",119859,"Av. Brasil, 694, Centro","86.840-000","Ylson Alvaro Cantagallo"]
["Fazenda Rio Grande",0.74285121134779641,"10%","Curitiba","95.422.986/0001-02",122352,"R. Jacarandá, 300, Nações","83.820-000","Nassib Kassem Hammad"]
["Fênix",0.7178925518730197,"10%","Campo Mourão","76.950.021/0001-30",119860,"R. Jangada, 25, Centro","86.950-000","Altair Molina Serrano"]
["Fernandes Pinheiro",0.74473333489473481,"10%","Irati","01.619.323/0001-20",119861,"Av. Remis João Loss, 600, Centro","84.535-000","Cleonice Aparecida Kufener Schuck"]
["Figueira",0.73012116916623981,"10%","Jacarezinho","78.063.732/0001-18",119862,"R. Doutor Zoilo Meira Simões, 410, Centro","84.285-000","José Carlos Contiero"]
["Floraí",0.73030909356094498,"10%","Maringá","75.731.000/0001-60",122353,"R. Presidente Getúlio Vargas, 177","87.185-000","Edna de Lourdes Carpine Contin"]
["Flor da Serra do Sul",0.78679436632922994,"10%","Francisco Beltrão","95.589.271/0001-30",119863,"R. João Arisi, 115, Centro","85.618-000","Valmor Felipe Junior"]
["Floresta",0.76568761882641911,"10%","Maringá","76.282.706/0001-55",119864,"Av. Getúlio Vargas, 2420, Centro","87.120-000","Ademir Luiz Maciel"]
["Florestópolis",0.73498735645170299,"10%","Londrina","75.845.495/0001-59",122354,"R. Santo Inácio, 161, Centro","86.165-000","Onicio de Souza"]
["Flórida",0.72618238821587189,"10%","Maringá","75.772.400/0001-14",122355,"R. São Pedro, 443, Centro","86.780-000","Antonio Emerson Sette"]
["Formosa do Oeste",0.78713601595719596,"10%","Toledo","76.208.495/0001-00",147689,"Av. Severiano Bonfim dos Santos, 111, Centro","85.830-000","Luiz Antonio Domingos de Aguiar"]
["Foz do Iguaçu",0.76860980897520392,"10%","Cascavel","76.206.606/0001-40",147495,"Praça Getúlio Vargas, 280, Centro","85.851-340","Francisco Lacerda Brasileiro"]
["Foz do Jordão",0.66946130600598031,"5%","Guarapuava","01.603.719/0001-80",122356,"R. Padre Emílio Barbiéri, 339, Centro","85.145-000","Francisco Clei da Silva"]
["Francisco Alves",0.64370568673385409,"5%","Umuarama","77.356.665/0001-67",119865,"R. Jorge Fereira, 627, Centro","87.570-000","Valter Cesar Rosa"]
["Francisco Beltrão",0.81060298674029474,"10%","Francisco Beltrão","77.816.510/0001-66",119866,"R. Octaviano Teixeira dos Santos, 1000, Centro","85.600-000","Cleber Fontana"]
["General Carneiro",0.68679706550632702,"5%","União da Vitória","75.687.681/0001-07",122357,"Av. Presidente Getúlio Vargas, 601, Centro","84.660-000","Joel Ricardo Martins Ferreira"]
["Godoy Moreira",0.6909724863792629,"5%","Ivaiporã","81.392.656/0001-07",119867,"R. Sebastião Máximo, 184, Centro","86.938-000","Primis de Oliveira"]
["Goioerê",0.75183632023357838,"10%","Campo Mourão","78.198.975/0001-63",119868,"Av. Amazonas, 280, Jardim Lindóia","87.360-000","Roberto dos Reis de Lima"]
["Goioxim",0.69499028009037656,"5%","Guarapuava","01.607.627/0001-78",131884,"R. Laurindo Cordeiro de Souza, 184, Centro","85.162-000","Mari Terezinha da Silva"]
["Grandes Rios",0.68405870840383676,"5%","Ivaiporã","75.741.348/0001-39",119869,"Av. Brasil, 967, Centro","86.845-000","Antonio Ribeiro da Silva"]
["Guaíra",0.72879250572923304,"10%","Toledo","77.857.183/0001-90",119870,"Av. Coronel Otávio Tosta, 126","85.980-000","Heraldo Trento"]
["Guairaçá",0.69458571897278443,"5%","Paranavaí","76.238.443/0001-87",122358,"R. Francisco Vieira, 1181","87.880-000","Marcelo Alves de Oliveira"]
["Guamiranga",0.73771677384918022,"10%","Irati","01.616.255/0001-46",119871,"R. Diogo Emanuel de Almeida, 234, Centro","84.435-000","Marcelo Leite"]
["Guapirama",0.74788695106819836,"10%","Jacarezinho","75.443.812/0001-00",119872,"R. Dois de Março, 460","86.465-000","Eduí Gonçalves"]
["Guaporema",0.73297605895360718,"10%","Cianorte","75.378.844/0001-70",119873,"R. Pará, 86","87.810-000","Gilberto Castiglioni"]
["Guaraci",0.62302308338351076,"5%","Londrina","75.845.537/0001-51",122359,"R. Prefeito João de Giuli, 180","86.620-000","Sidnei Dezoti"]
["Guaraniaçu",0.73818681558326771,"10%","Laranjeiras Do Sul","76.208.818/0001-66",119874,"Av. Abilon de Souza Neves, 394","85.400-000","Osmario de Lima Portela"]
["Guarapuava",0.78475134256512247,"10%","Guarapuava","76.178.037/0001-76",122327,"R. Brigadeiro Rocha, 2777","85.010-210","Celso Fernando Góes"]
["Guaraqueçaba",0.578977961388774,"5%","Paranaguá","76.022.508/0001-52",122360,"R. Major Domingos do Nascimento, 46","83.390-000","Lilian Ramos Narloch"]
["Guaratuba",0.68831177659985843,"5%","Paranaguá","76.017.474/0001-08",120032,"R. Doutor João Cândido, 380, Centro","83.280-000","Roberto Cordeiro Justus"]
["Honório Serpa",0.72679850591823858,"10%","Pato Branco","95.585.444/0001-42",122361,"R. Elpídio dos Santos, 541","85.548-000","Luciano Dias"]
["Ibaiti",0.72109664491491099,"10%","Jacarezinho","77.008.068/0001-41",122362,"R. Vereador José de Moura Bueno, 23 - Praça dos T","84.900-000","Antonely de Cássio Alves de Carvalho"]
["Ibema",0.74546217683610472,"10%","Cascavel","80.881.931/0001-85",119875,"Av. Ney Euirson Napoli, 1426, Centro","85.478-000","Viviane Comiran"]
["Ibiporã",0.77142487302496077,"10%","Londrina","76.244.961/0001-03",119876,"R. Padre Vitoriano Valente, 540, Centro","86.200-000","José Maria Ferreira"]
["Icaraíma",0.69505667179237784,"5%","Umuarama","76.247.337/0001-60",119877,"Av. Hermes Vissoto, 810","87.530-000","Marcos Alex de Oliveira"]
["Iguaraçu",0.78755975449454729,"10%","Maringá","75.772.525/0001-44",147713,"R. Otávio Pedro da Silva, 294","86.750-000","Eliseu Silva da Costa"]
["Iguatu",0.71021398118127188,"10%","Cascavel","95.595.013/0001-67",119878,"Av. Centenário, 500, Centro","85.423-000","Vlademir Antonio Barella"]
["Imbaú",0.63453600604126648,"5%","Ponta Grossa","01.613.770/0001-72",122363,"Av. Francisco Siqueira Kortz, 471, São Cristóv","84.250-000","Dayane Sovinski Rodrigues"]
["Imbituva",0.75208496575817951,"10%","Irati","76.175.892/0001-23",119879,"R. José Buhrer Júnior, 462","84.430-000","Celso Kubaski"]
["Inácio Martins",0.6514087052085481,"5%","Irati","76.178.029/0001-20",119880,"R. Sete de Setembro, 332","85.155-000","Edemetrio Benato Junior"]
["Inajá",0.76657619876784799,"10%","Paranavaí","76.970.318/0001-67",122364,"Av. Antonio Vieira Martins, 80","87.670-000","Cléber Geraldo da Silva"]
["Indianópolis",0.73996535923422846,"10%","Cianorte","75.798.355/0001-77",119881,"Praça Caramurú, 150","87.210-000","Juliano Trevisan Cordeiro"]
["Ipiranga",0.66119127721337223,"5%","Ponta Grossa","76.175.934/0001-26",119882,"R. Xv de Novembro, 545, Centro","84.450-000","Douglas Davi Cruz"]
["Iporã",0.71262058468608158,"10%","Umuarama","75.738.484/0001-70",119883,"R. Pedro Alvares Cabral, 2677","87.560-000","Sergio Luiz Borges"]
["Iracema do Oeste",0.73835878677673783,"10%","Toledo","95.583.555/0001-10",119884,"R. Professor Vieira de Alencar, 441","85.833-000","Elza Haase Rodrigues"]
["Irati",0.76960603385641768,"10%","Irati","75.654.574/0001-82",119885,"R. Coronel Emílio Gomes, 22","84.500-000","Jorge David Derbli Pinto"]
["Iretama",0.74285464924736522,"10%","Campo Mourão","76.950.088/0001-74",122365,"R. Oscar Gauer Khunn, 174","87.280-000","Same Saab"]
["Itaguajé",0.72251054470742426,"10%","Maringá","76.970.359/0001-53",147724,"Av. Governador Moisés Lupion, 605","86.670-000","Crisogono Noleto E Silva Junior"]
["Itaipulândia",0.83233458452517162,"10%","Cascavel","95.725.057/0001-64",147725,"R. São Miguel do Iguaçu, 1891","80.588-000","Cleide Ines Griebeler Prates"]
["Itambaracá",0.6998430447605698,"5%","Cornélio Procópio","76.235.738/0001-08",119886,"Av. Interventor Manoel Ribas, 6, Centro","86.375-000","Mônica Cristina Zambon Holzmann"]
["Itambé",0.72066384285059815,"10%","Maringá","76.282.698/0001-47",133431,"Praça Rui Barbosa, 34","87.175-000","Vitor Aparecido Fedrigo"]
["Itapejara D'Oeste",0.77611178023238947,"10%","Pato Branco","76.995.430/0001-52",119887,"Av. Manoel Ribas, 620, Centro","85.580-000","Vilmar Schmoller"]
["Itaperuçu",0.58513728181474256,"5%","Curitiba","95.422.846/0001-26",147510,"Av. Crispim Furquim da Siqueira, 1800","83.560-000","Neneu Jose Artigas"]
["Itaúna do Sul",0.6344894706823988,"5%","Paranavaí","75.458.836/0001-33",119888,"Av. Brasil, 883, Centro","87.980-000","Gilson José de Gois"]
["Ivaí",0.7110033705733233,"10%","Ponta Grossa","76.175.918/0001-33",119889,"R. Rui Barbosa, 632","84.460-000","Idir Treviso"]
["Ivaiporã",0.74634477243641539,"10%","Ivaiporã","75.741.330/0001-37",119890,"R. Rio Grande do Norte, 1000","86.870-000","Luiz Carlos Gil"]
["Ivaté",0.75400003118149039,"10%","Umuarama","95.640.553/0001-15",122366,"Av. Rio de Janeiro, 2758","87.525-000","Denilson Vaglieri Prevital"]
["Ivatuba",0.77686987753770709,"10%","Maringá","76.285.337/0001-54",122367,"R. Marechal Floriano, 797","87.130-000","Sergio José Santi"]
["Jaboti",0.70647271990756888,"10%","Jacarezinho","75.969.667/0001-04",119891,"Praça Minas Gerais, 175","84.930-000","Regis William Siqueira Rodrigues"]
["Jacarezinho",0.74553686776594663,"10%","Jacarezinho","76.966.860/0001-46",119892,"R. Coronel Baptista, 335","86.400-000","Marcelo José Bernardeli Palhares"]
["Jaguapitã",0.80431376529245846,"10%","Londrina","75.457.341/0001-90",122368,"Av. Minas Gerais, 220","86.610-000","Gerson Luiz Marcato"]
["Jaguariaíva",0.75774839738524591,"10%","Ponta Grossa","76.910.900/0001-38",119893,"Praça Isabel Branco, 142, Cidade Alta","84.200-000","Alcione Lemos"]
["Jandaia do Sul",0.7886722117701096,"10%","Apucarana","75.771.204/0001-25",119894,"Praça do Café, 22","86.900-000","Lauro de Souza Silva Junior"]
["Janiópolis",0.74456136920563576,"10%","Campo Mourão","76.402.882/0001-83",120033,"R. Rui Barbosa, 286, Centro","87.380-000","Ismael Jose Dezanoski"]
["Japira",0.57052328935335062,"5%","Jacarezinho","75.969.881/0001-52",119895,"Av. Alexandre Leite dos Santos, 481, Centro","84.920-000","Angelo Marcos Vigilato"]
["Japurá",0.78856006488228692,"10%","Cianorte","75.788.349/0001-39",119896,"Av. Bolivar, 363, Centro","87.225-000","Adriana Cristina Polizer"]
["Jardim Alegre",0.64898364034357459,"5%","Ivaiporã","75.741.363/0001-87",122369,"Praça Mariana Leite Felix, 800","86.860-000","José Roberto Furlan"]
["Jardim Olinda",0.70564252956446161,"10%","Paranavaí","76.970.383/0001-92",122370,"Av. Siqueira Campos, 83, Centro","87.690-000","Lucimar de Souza Morais"]
["Jataizinho",0.67117658219621223,"5%","Cornélio Procópio","76.245.042/0001-54",147744,"Av. Presidente Getúlio Vargas, 494","86.210-000","Wilson Fernandes"]
["Jesuítas",0.75261538568274478,"10%","Toledo","77.398.154/0001-08",119897,"R. Padre Leonel França, 369","85.835-000","Aparecido Jose Weiller Junior"]
["Joaquim Távora",0.8093243974481682,"10%","Jacarezinho","76.966.845/0001-06",122371,"R. Miguel Dias, 226, Centro","86.455-000","Reginaldo Vilela"]
["Jundiaí do Sul",0.7232964157510996,"10%","Jacarezinho","76.408.061/0001-54",175629,"Praça Pio X, 260, Centro","86.470-000","Eclair Rauen"]
["Juranda",0.76043250690272002,"10%","Campo Mourão","78.196.755/0001-09",119898,"Praça Henrique Szafermann, 139, Centro","87.355-000","Leila Miotto Amadei"]
["Jussara",0.79412924624229742,"10%","Cianorte","75.789.552/0001-20",119899,"Av. Princesa Izabel, 320, Centro","87.230-000","Robison Pedroso da Silva"]
["Kaloré",0.7681867522845689,"10%","Apucarana","75.771.238/0001-10",122372,"Praça Francisco Lemes Gonçalves, 267, Centro","86.920-000","Edmilson Luis Stencel"]
["Lapa",0.68459862310991326,"5%","Curitiba","76.020.452/0001-05",119788,"Alameda David Carneiro, 243, Centro","83.750-000","Diego Timbirussu Ribas"]
["Laranjal",0.6404061779618585,"5%","Pitanga","95.684.536/0001-80",119900,"R. Pernambuco, 501, Centro","85.275-000","João Elinton Dutra"]
["Laranjeiras do Sul",0.75150646122946407,"10%","Laranjeiras Do Sul","76.205.970/0001-95",119901,"R. Expedicionário João Maria, 1020, Centro","85.301-410","Jonatas Felisberto da Silva"]
["Leópolis",0.69020439196352612,"5%","Cornélio Procópio","75.388.850/0001-08",119902,"R. Pedro Domingues de Souza, 374, Centro","86.330-000","Alessandro Ribeiro"]
["Lidianópolis",0.74098260051581366,"10%","Ivaiporã","95.680.831/0001-68",119903,"R. Juscelino Kubitschek, 327, Centro","86.865-000","Adauto Aparecido Mandu"]
["Lindoeste",0.7319757802901522,"10%","Cascavel","80.881.915/0001-92",147756,"Av. Marechal Cândido Rondon, S/N, Centro","85.826-000","Silvio de Souza"]
["Loanda",0.73452186352842574,"10%","Paranavaí","76.972.074/0001-51",119904,"R. Mato Grosso, 354, Alto da Glória","87.900-000","José Maria Pereira Fernandes"]
["Lobato",0.75228788766286525,"10%","Maringá","76.970.367/0001-08",119905,"R. Antonio Coleto, 1260, Centro","86.790-000","Fabio Chicaroli"]
["Londrina",0.80058008253929103,"10%","Londrina","75.771.477/0001-70",140982,"Av. Duque de Caxias, 635, Jardim Mazei Ii","86.015-901","Marcelo Belinati Martins"]
["Luiziana",0.70078134164728445,"10%","Campo Mourão","80.888.688/0001-27",122373,"R. Doutor Miguel Vieira Ferreira, 22, Centro","87.290-000","Wilson Antônio Tureck"]
["Lunardelli",0.73738700334912843,"10%","Ivaiporã","78.600.491/0001-07",122374,"Av. Dom Pedro Ii, 195, Centro","86.935-000","Reinaldo Grola"]
["Lupionópolis",0.65475258895767863,"5%","Londrina","75.845.511/0001-03",119906,"Praça Padre Antonio Pozzato, 880, Centro","86.635-000","Antonio Peloso Filho"]
["Mallet",0.79479270018068837,"10%","Irati","75.654.566/0001-36",119907,"R. Xv de Novembro, 28, Centro","84.570-000","Moacir Alfredo Szinvelski"]
["Mamborê",0.72331496908996062,"10%","Campo Mourão","75.368.928/0001-22",122375,"R. Guadalajara, 645, Centro","87.340-000","Ricardo Radomski"]
["Mandaguaçu",0.74650267421082261,"10%","Maringá","76.285.329/0001-08",119908,"R. Bernardino Bogo, 175, Centro","87.160-000","Maurício Aparecido da Silva"]
["Mandaguari",0.81094026036423195,"10%","Maringá","76.285.345/0001-09",119909,"Av. Amazonas, 500, Centro","86.975-000","Ivoneia de Andrade Aparecido Furtado"]
["Mandirituba",0.65564129284709649,"5%","Curitiba","76.105.550/0001-37",147769,"Praça Bom Jesus, 44, Centro","83.800-000","Luis Antonio Biscaia"]
["Manfrinópolis",0.58766600555858617,"5%","Francisco Beltrão","01.614.343/0001-09",119910,"R. Encantilado, 11, Centro","85.628-000","Ilena de Fatima Pegoraro Oliveira"]
["Mangueirinha",0.71597984794880221,"10%","Pato Branco","77.774.867/0001-29",119911,"Praça Francisco de Assis Reis, 1064, Centro","85.540-000","Elidio Zimerman de Moraes"]
["Manoel Ribas",0.69721074936622784,"5%","Pitanga","75.740.811/0001-28",119912,"Av. Sete de Setembro, 366, Centro","85.260-000","José Carlos da Silva Corona"]
["Marechal Cândido Rondon",0.81909656313391999,"10%","Toledo","76.205.814/0001-24",119913,"R. Espirito Santo, 777, Centro","85.960-000","Marcio Andrei Rauber"]
["Maria Helena",0.72687073177252304,"10%","Umuarama","76.247.386/0001-00",119914,"Praça Brasil, 2001, Centro","87.480-000","Marlon Rancer Marques"]
["Marialva",0.79212561590745711,"10%","Maringá","76.282.680/0001-45",119915,"R. Santa Efigênia, 680, Centro","86.990-000","Victor Celso Martini"]
["Marilândia do Sul",0.70550416224233992,"10%","Apucarana","75.771.303/0001-07",122376,"R. Silvio Beligni, 200, Centro","86.825-000","Aquiles Takeda Filho"]
["Marilena",0.70135861181451009,"10%","Paranavaí","75.971.010/0001-73",119916,"R. Dante Pasqualetto, 855, Centro","87.960-000","José Aparecido da Silva"]
["Mariluz",0.66322475826261973,"5%","Umuarama","76.404.136/0001-29",122326,"Av. Marilia, 1920, Centro","87.470-000","Paulo Armando da Silva Alves"]
["Maringá",0.83452146451887688,"10%","Maringá","76.282.656/0001-06",147520,"Av. Xv de Novembro, 701, Centro","87.013-230","Ulisses de Jesus Maia Kotsifas"]
["Mariópolis",0.75364581306084466,"10%","Pato Branco","76.995.323/0001-24",122377,"R. Seis, 1030","85.525-000","Mário Eduardo Lopes Paulek"]
["Maripá",0.80556376499068616,"10%","Toledo","95.583.571/0001-02",119917,"R. Luiz de Camões, 437","85.955-000","Rodrigo André Schanoski"]
["Marmeleiro",0.78925550239719622,"10%","Francisco Beltrão","76.205.665/0001-01",119918,"Av. Macali, 255, Centro","85.615-000","Paulo Jair Pilati"]
["Marquinho",0.73961529797723602,"10%","Laranjeiras Do Sul","01.612.552/0001-13",122378,"R. Sete de Setembro, S/N, Centro","85.168-000","Elio Bolzon Junior"]
["Marumbi",0.77105524809663117,"10%","Apucarana","75.771.246/0001-66",122328,"R. Vereador João Fuzetti, 800","86.910-000","Adhemar Francisco Rejani"]
["Matelândia",0.78334505362643025,"10%","Cascavel","76.206.465/0001-65",119919,"Av. Duque de Caxias, 800","85.887-000","Maximino Pietrobon"]
["Matinhos",0.65175751926765724,"5%","Paranaguá","76.017.466/0001-61",122379,"R. Pastor Elias Abrahão, 22, Centro","83.260-000","José Carlos do Espirito Santo"]
["Mato Rico",0.71735929934326992,"10%","Pitanga","95.684.510/0001-31",122380,"Av. Das Araucárias, 01, Centro","85.240-000","Edelir de Jesus Ribeiro da Silva"]
["Mauá da Serra",0.70797320747028181,"10%","Apucarana","95.548.400/0001-42",119920,"Av. Ponta Grossa, 480","86.828-000","Hermes Wicthoff"]
["Medianeira",0.82028137658049083,"10%","Cascavel","76.206.481/0001-58",119921,"Av. José Ccallegari, 647, Ipê","85.884-000","Antonio França Benjamim"]
["Mercedes",0.79835419860256829,"10%","Toledo","95.719.373/0001-23",122330,"R. Doutor Osvaldo Cruz, 555, Centro","85.998-000","Laerton Weber"]
["Mirador",0.73718093721126854,"10%","Paranavaí","75.475.442/0001-93",119922,"Av. Guaíra, 153, Centro","87.840-000","Fabiano Marcos da Silva Travain"]
["Miraselva",0.68956948110131633,"5%","Londrina","75.845.529/0001-05",122381,"R. São Paulo, 10","86.615-000","Rogerio Aparecido da Silva"]
["Missal",0.72633058247850046,"10%","Cascavel","78.101.847/0001-50",147523,"R. Nossa Senhora da Conceição, 555","85.890-000","Adilto Luis Ferrari"]
["Moreira Sales",0.70157007944245342,"10%","Campo Mourão","76.217.025/0001-03",122382,"R. Otto de Macedo, 629, Centro","87.370-000","Rafael Brito do Prado"]
["Morretes",0.61105110861962675,"5%","Paranaguá","76.022.490/0001-99",119923,"Praça Rocha Pombo, 10, Centro","83.350-000","Sebastião Brindarolli Junior"]
["Munhoz de Mello",0.73554961272759867,"10%","Maringá","75.352.062/0001-61",147796,"R. Domingos Ricardo de Lima, 174","86.760-000","Marcondes Araújo da Costa"]
["Nossa Senhora Das Graças",0.70963868152237797,"10%","Maringá","76.970.300/0001-65",147797,"Praça Deputado Nilson Batista Ribas, 131, Centro","86.680-000","Clodoaldo Aparecido Rigieri"]
["Nova Aliança do Ivaí",0.75177780268062122,"10%","Paranavaí","76.413.061/0001-42",214812,"Av. Francisco Pires de Lemos, 410, Centro","87.790-000","Ulisses de Souza"]
["Nova América da Colina",0.67328994787802454,"5%","Cornélio Procópio","75.827.204/0001-08",119924,"Av. Paraná, 42","86.230-000","Sebastião Rogatti"]
["Nova Aurora",0.79236370251861521,"10%","Cascavel","76.208.859/0001-52",119925,"R. São João, 354","85.410-000","José Aparecido de Paula E Souza"]
["Nova Cantú",0.73764199033931088,"10%","Campo Mourão","77.845.394/0001-03",119926,"R. Bahia, 660","87.330-000","Airton Antonio Agnolin"]
["Nova Esperança",0.75893922577694495,"10%","Maringá","75.730.994/0001-09",119927,"Av. Rocha Pombo, 1453, Centro","87.600-000","Moacir Olivatti"]
["Nova Esperança do Sudoeste",0.69670389799744437,"5%","Dois Vizinhos","95.589.289/0001-32",119928,"Av. Iguaçu, 750, Centro","85.635-000","Jaime da Silva Stang"]
["Nova Fátima",0.74012257916593527,"10%","Cornélio Procópio","75.828.418/0001-90",147804,"R. Doutor Aloysio de Barros Tostes, 420, Centro","86.310-000","Roberto Carlos Messias"]
["Nova Laranjeiras",0.59823603021097271,"5%","Laranjeiras Do Sul","95.587.648/0001-12",122383,"R. Rio Grande do Sul, 2122","85.350-000","Fabio Roberto dos Santos"]
["Nova Londrina",0.78636539413467332,"10%","Paranavaí","81.044.984/0001-04",119929,"Praça da Matriz, 261, Centro","87.970-000","Otavio Henrique Grendene Bono"]
["Nova Olímpia",0.74199911469994706,"10%","Umuarama","75.799.577/0001-04",122384,"Av. Higienópolis, 821, Centro","87.490-000","Luiz Lazaro Sorvos"]
["Nova Prata do Iguaçu",0.72803001337214912,"10%","Dois Vizinhos","78.103.884/0001-05",119930,"R. Vereador Valmor Gomes, 1159, Centro","85.685-000","Sergio Faust"]
["Nova Santa Bárbara",0.68162534313898127,"5%","Cornélio Procópio","95.561.080/0001-60",147809,"R. Walfredo Bittencourt de Moraes, 222","86.250-000","Claudemir Valério"]
["Nova Santa Rosa",0.76983645087120112,"10%","Toledo","77.116.663/0001-09",120029,"R. Tucunduva, 833","85.930-000","Norberto Pinz"]
["Nova Tebas",0.6776273193527057,"5%","Pitanga","80.620.172/0001-05",119931,"R. Belo Horizonte, 695","85.250-000","Clodoaldo Fernandes dos Santos"]
["Novo Itacolomi",0.71469750381831199,"10%","Apucarana","95.639.472/0001-03",119932,"Av. 28 de Setembro, 711","86.895-000","Moacir Andreolla"]
["Ortigueira",0.75148797177001081,"10%","Ponta Grossa","77.721.363/0001-40",119933,"R. São Paulo, 80","84.350-000","Ary de Oliveira Mattos"]
["Ourizona",0.77853929071100414,"10%","Maringá","76.282.672/0001-07",122385,"R. Bela Vista, 1014, Centro","87.170-000","Manoel Rodrigo Amado"]
["Ouro Verde do Oeste",0.75400282469794766,"10%","Toledo","80.880.107/0001-00",122331,"R. Curitiba, 657","85.933-000","Lucian Aluisio Dierings"]
["Paiçandu",0.71853262613863256,"10%","Maringá","76.282.664/0001-52",147529,"R. Sete de Setembro, 499","87.140-000","Ismael Batista"]
["Palmas",0.6800899343888287,"5%","Pato Branco","76.161.181/0001-08",122386,"Av. Clevelândia, 521, Centro","85.555-000","Kosmos Panayotis Nicolaou"]
["Palmeira",0.75705480976611794,"10%","Ponta Grossa","76.179.829/0001-65",119934,"Praça Marechal Floriano Peixoto, 11 - Centro","84.130-000","Sérgio Luís Belich"]
["Palmital",0.68246978393255742,"5%","Pitanga","75.680.025/0001-82",119935,"R. Moisés Lupion, 1001","85.270-000","Valdenei de Souza"]
["Palotina",0.85959981558106147,"10%","Toledo","76.208.487/0001-64",119936,"R. Aldir Pedron, 898","85.950-000","Luiz Ernesto de Giacometti"]
["Paraíso do Norte",0.78720651028129607,"10%","Paranavaí","75.476.556/0001-58",121327,"Av. Tapejara, 88, Centro","87.780-000","Carlos Alberto Vizzotto"]
["Paranacity",0.69668729653715167,"5%","Paranavaí","76.970.334/0001-50",119937,"R. Pedro Paulo Venério, 1022","87.660-000","Waldemar Naves Cocco Junior"]
["Paranaguá",0.71773078315110828,"10%","Paranaguá","76.017.458/0001-15",119938,"R. Júlia da Costa, 322 - Palácio São José","83.203-060","Marcelo Elias Roque"]
["Paranapoema",0.69697080359404007,"5%","Paranavaí","76.970.391/0001-39",147824,"R. Doutor José Cândido Muricy, 216, Centro","87.680-000","Sidnei Frazatto"]
["Paranavaí",0.8165218381228474,"10%","Paranavaí","76.977.768/0001-81",119939,"R. Getúlio Vargas, 900, Centro","87.702-000","Carlos Henrique Rossato Gomes"]
["Pato Bragado",0.76517448987078518,"10%","Toledo","95.719.472/0001-05",119940,"R. Willy Barth, 2885","85.948-000","Leomar Rohden"]
["Pato Branco",0.82922617595107917,"10%","Pato Branco","76.995.448/0001-54",119941,"R. Caramurú, 271, Centro","85.501-060","Robson Cantu"]
["Paula Freitas",0.73959941006845842,"10%","União da Vitória","75.687.954/0001-13",119942,"Av. Agostinho de Souza, 646, Centro","84.630-000","Sebastião Algacir Dalpra"]
["Paulo Frontin",0.71591490893364995,"10%","União da Vitória","77.007.474/0001-90",122387,"R. Rui Barbosa, 204","84.635-000","Jamil Pech"]
["Peabiru",0.76048089865789825,"10%","Campo Mourão","75.370.148/0001-17",122388,"Praça Eleutério Galdino de Andrade, 21, Centro","87.250-000","Julio Cezar Frare"]
["Perobal",0.74094724221350761,"10%","Umuarama","01.612.444/0001-40",119943,"Av. Paraná, 609, Centro","87.538-000","Almir de Almeida"]
["Pérola",0.75486459030349773,"10%","Umuarama","81.478.133/0001-70",119944,"Av. Dona Pérola Byington, 1800, Centro","87.540-000","Valdete Carlos Oliveira Gonçalves da Cunha"]
["Pérola D'Oeste",0.69361202571088976,"5%","Francisco Beltrão","75.924.290/0001-69",119945,"R. Presidente Costa E Silva, 290, Centro","85.740-000","Edsom Luiz Bagetti"]
["Piên",0.76511282562076133,"10%","Curitiba","76.002.666/0001-40",119946,"R. Amazonas, 373, Centro","83.860-000","Maicon Grosskopf"]
["Pinhais",0.78869073213545626,"10%","Curitiba","95.423.000/0001-00",119947,"R. Wanda dos Santos Mallmann, 536, Centro","83.323-400","Marly Paulino Fagundes"]
["Pinhalão",0.75311539298192687,"10%","Jacarezinho","76.167.717/0001-94",122409,"R. Domingos Calixto, 483, Centro","84.925-000","Dionisio Arrais de Alencar"]
["Pinhal de São Bento",0.75578159993539595,"10%","Francisco Beltrão","95.590.832/0001-11",119948,"Av. São Roque, 178","85.727-000","Paulo Falcade de Oliveira"]
["Pinhão",0.67772825816707771,"5%","Guarapuava","76.178.011/0001-28",119949,"Av. Trifon Hanysz, 220, Centro","85.170-000","José Vitorino Prestes"]
["Piraí do Sul",0.7126158743848453,"10%","Ponta Grossa","77.001.329/0001-00",214818,"Praça Alípio Domingues, 34, Centro","84.240-000","Henrique de Oliveira Carneiro"]
["Piraquara",0.64883501406958188,"5%","Curitiba","76.105.675/0001-67",122389,"Av. Getúlio Vargas, 1990, Centro","83.301-010","Josimar Aparecido Knupp Froes"]
["Pitanga",0.76668929309193323,"10%","Pitanga","76.172.907/0001-08",119950,"Praça 28 de Janeiro, 171, Centro","85.200-000","Maicol Geison Callegari Rodrigues Barbosa"]
["Pitangueiras",0.76180078029472265,"10%","Londrina","95.543.427/0001-42",122410,"Av. Central, 408, Centro","86.613-000","Samuel Teixeira"]
["Planaltina do Paraná",0.71671064733710077,"10%","Paranavaí","75.461.442/0001-34",122390,"Praça Giácomo Madalozzo, 234, Centro","87.860-000","Celso Maggioni"]
["Planalto",0.76192349430709638,"10%","Francisco Beltrão","76.460.526/0001-16",119951,"Praça São Francisco de Assis, 1583","85.750-000","Luiz Carlos Boni"]
["Ponta Grossa",0.76015221319526127,"10%","Ponta Grossa","76.175.884/0001-87",119952,"Av. Visconde de Taunay, 950, Ronda","84.051-900","Elizabeth Silveira Schmidt"]
["Pontal do Paraná",0.61747344762564393,"5%","Paranaguá","01.609.843/0001-52",119953,"Rodovia - Pr 407 - Km 19, 215, Praia de Leste","83.255-000","Rudisney Gimenes Filho"]
["Porecatu",0.65457191123241121,"5%","Londrina","80.542.764/0001-48",122391,"R. Barão do Rio Branco, 344","86.160-000","Fábio Luiz Andrade"]
["Porto Amazonas",0.7728586646440645,"10%","Ponta Grossa","76.179.837/0001-01",147848,"R. Guilherme Schiffer, 67, Centro","84.140-000","Elias Jocid Gomes da Costa"]
["Porto Barreiro",0.7602839584351847,"10%","Laranjeiras Do Sul","01.591.618/0001-36",119954,"R. Das Carmélias, 900","85.345-000","Emanoel Vanderlei Volff"]
["Porto Rico",0.76555024305298236,"10%","Paranavaí","75.461.970/0001-93",132286,"Av. João Carraro, 557","87.950-000","Álvaro de Freitas Netto"]
["Porto Vitória",0.76101738759604454,"10%","União da Vitória","75.688.366/0001-02",119955,"R. Osvaldo Gomes da Silva, 717, Centro","84.615-000","Marisa de Fatima Ilkiu de Souza"]
["Prado Ferreira",0.73254971475429542,"10%","Londrina","01.613.136/0001-30",119956,"R. São Paulo, 191, Centro","86.618-000","Maria Edna de Andrade"]
["Pranchita",0.75226908961202454,"10%","Francisco Beltrão","78.113.834/0001-09",119957,"Av. Simão Faquinello, 364","85.730-000","Eloir Nelson Lange"]
["Presidente Castelo Branco",0.67205541876734232,"5%","Maringá","76.279.959/0001-70",147855,"R. José Peres Gonçalves, 53","87.180-000","Joao Pericles Martinati"]
["Primeiro de Maio",0.65109578719482741,"5%","Londrina","76.245.059/0001-01",122392,"R. Onze, 674","86.140-000","Bruna de Oliveira Casanova"]
["Prudentópolis",0.73789165333039064,"10%","Guarapuava","77.003.424/0001-34",119958,"R. Rui Barbosa, 801, Centro","84.400-000","Osnei Stadler"]
["Quarto Centenário",0.77962436346956876,"10%","Campo Mourão","01.619.104/0001-41",119959,"Av. Raposo Tavares, 594","87.365-000","Wilson Akio Abe"]
["Quatiguá",0.72653655522352079,"10%","Jacarezinho","76.966.852/0001-08",119960,"Av. João Pessoa, 1300","86.450-000","Adelita Parmezan de Moraes"]
["Quatro Barras",0.83902889562597061,"10%","Curitiba","76.105.568/0001-39",147860,"Av. Dom Pedro Ii, 110, Centro","83.420-000","Loreno Bernardo Tolardo"]
["Quatro Pontes",0.81564924870979694,"10%","Toledo","95.719.381/0001-70",119961,"R. Gaspar Martins, 560, Centro","85.940-000","João Inacio Laufer"]
["Quedas do Iguaçu",0.70750257308888942,"10%","Laranjeiras Do Sul","76.205.962/0001-49",119962,"R. Juazeiro, 1065","85.460-000","Elcio Jaime da Luz"]
["Querência do Norte",0.69247306979705536,"5%","Paranavaí","76.973.692/0001-16",119963,"R. Waldemar dos Santos, 1197","87.930-000","Alex Sandro Fernandes"]
["Quinta do Sol",0.71340908100075062,"10%","Campo Mourão","76.950.047/0001-88",119964,"Praça Solange Marques, 259, Centro","87.265-000","Leonardo Lazzaretti Romero"]
["Quitandinha",0.692903257343775,"5%","Curitiba","76.002.674/0001-97",119965,"R. José de Sá Ribas, 238","83.840-000","Jose Ribeiro de Moura"]
["Ramilândia",0.60610405317086979,"5%","Cascavel","95.725.024/0001-14",122393,"Av. Voluntários da Pátria, 1600","85.888-000","Edson dos Santos"]
["Rancho Alegre",0.70544287820104057,"10%","Cornélio Procópio","75.829.416/0001-16",214819,"Av. Brasil, 256","86.290-000","Fernando Carlos Coimbra"]
["Rancho Alegre D'Oeste",0.72374358312606724,"10%","Campo Mourão","95.640.132/0001-94",119966,"Av. Paraná, 530, Centro","87.395-000","Adão Aristeu Ceniz"]
["Realeza",0.78121388847153972,"10%","Francisco Beltrão","76.205.673/0001-40",119967,"R. Barão do Rio Branco, 3507, Centro Cívico","85.770-000","Paulo Cezar Casaril"]
["Rebouças",0.72504355278299959,"10%","Irati","77.774.859/0001-82",147870,"R. José Afonso Vieira Lopes, 96","84.550-000","Luiz Everaldo Zak"]
["Renascença",0.77611803393006662,"10%","Francisco Beltrão","76.205.681/0001-96",122394,"R. Getúlio Vargas, 901, Centro","85.610-000","Idalir João Zanella"]
["Reserva",0.66611609629683688,"5%","Ponta Grossa","76.169.879/0001-61",119968,"R. Coronel Rogério Borba, 741, Centro","84.320-000","Lucas Machado Ribeiro"]
["Reserva do Iguaçu",0.6804562347459262,"5%","Guarapuava","01.612.911/0001-32",119969,"Av. 04 de Setembro, 614, Centro","85.195-000","Vitorio Antunes de Paula"]
["Ribeirão Claro",0.74277319347757287,"10%","Jacarezinho","75.449.579/0001-73",119970,"R. Coronel Emílio Gomes, 731, Centro","86.410-000","João Carlos Bonato"]
["Ribeirão do Pinhal",0.68107087235843766,"5%","Cornélio Procópio","76.968.064/0001-42",147539,"R. Paraná, 983","86.490-000","Dartagnan Calixto Fraiz"]
["Rio Azul",0.69944656088822743,"5%","Irati","75.963.256/0001-01",119971,"R. Guilherme Pereira, 482","84.560-000","Leandro Jasinski"]
["Rio Bom",0.72432951117643574,"10%","Apucarana","75.771.212/0001-71",119972,"Av. Curitiba, 65, Centro","86.830-000","Moises Jose de Andrade"]
["Rio Bonito do Iguaçu",0.68215934160462932,"5%","Laranjeiras Do Sul","95.587.770/0001-99",119973,"R. 7 de Setembro, 720, Centro","85.340-000","Sezar Augusto Bovino"]
["Rio Branco do Ivaí",0.65106698899303672,"5%","Ivaiporã","01.612.413/0001-90",131889,"Av. Rio Branco, 500","86.848-000","Pedro Taborda Desplanches"]
["Rio Branco do Sul",0.66810846065447704,"5%","Curitiba","76.105.576/0001-85",214820,"R. Horacy Santos, 222, Centro","83.540-000","Karime Fayad"]
["Rio Negro",0.79111921969081711,"10%","Curitiba","76.002.641/0001-47",119974,"R. Juvenal Ferreira Pinto, 2070, Seminário","83.880-000","James Karson Valério"]
["Rolândia",0.79825766292128308,"10%","Londrina","76.288.760/0001-08",119975,"R. Presidente Bernardes, 809, Centro","86.600-000","Ailton Aparecido Maistro"]
["Roncador",0.71918917174177066,"10%","Campo Mourão","75.371.401/0001-57",119976,"Praça Moisés Lupion, 89, Centro","87.320-000","Vivaldo Lessa Moreira"]
["Rondon",0.744488696955527,"10%","Cianorte","75.380.071/0001-66",119977,"Av. Brasil, 1500, Centro","87.800-000","Roberto Aparecido Corredato"]
["Rosário do Ivaí",0.72577643408126036,"10%","Ivaiporã","80.059.264/0001-50",119978,"Av. São Paulo, 45","86.850-000","Ilton Shiguemi Kuroda"]
["Sabáudia",0.81694504259668366,"10%","Apucarana","76.958.974/0001-44",120640,"Praça da Bandeira, 47, Centro","86.720-000","Moises Soares Ribeiro"]
["Salgado Filho",0.75229469607866195,"10%","Francisco Beltrão","76.205.699/0001-98",119979,"R. Floriano Francisco Anater, 50","85.620-000","Volmar Duarte"]
["Salto do Itararé",0.74581478491644992,"10%","Jacarezinho","76.920.834/0001-87",147888,"R. Eduardo Bertoni Junior, 471","84.945-000","Paulo Sérgio Fragoso da Silva"]
["Salto do Lontra",0.75435942970698966,"10%","Dois Vizinhos","76.205.707/0001-04",119980,"R. Rio Grande do Sul, 975, Centro","85.670-000","Fernando Alberto Cadore"]
["Santa Amélia",0.63933049269542408,"5%","Cornélio Procópio","76.235.746/0001-46",176559,"R. Alcides Prudente Pavan, 130, Centro","86.370-000","Antonio Carlos Tamais"]
["Santa Cecília do Pavão",0.65064153749192799,"5%","Cornélio Procópio","76.290.691/0001-77",122395,"R. Jerônimo Farias Martins, 1335","86.225-000","Edimar Aparecido Pereira dos Santos"]
["Santa Cruz de Monte Castelo",0.67526533809110034,"5%","Paranavaí","75.462.820/0001-02",119981,"Av. Paulo Libânio, 700, Centro","87.920-000","Francisco Antonio Boni"]
["Santa Fé",0.77852497550159772,"10%","Maringá","76.291.418/0001-67",122396,"Av. Presidente Kennedy, 717","86.770-000","Fernando Brambilla"]
["Santa Helena",0.77764679916292978,"10%","Toledo","76.206.457/0001-19",147894,"R. Paraguai, 1401 - Centro","85.892-000","Evandro Miguel Grade"]
["Santa Inês",0.69621578738340173,"5%","Maringá","78.092.293/0001-71",122397,"R. Governador Munhoz da Rocha, 200","86.660-000","Bruno Vieira Luvisotto"]
["Santa Isabel do Ivaí",0.68415729694029437,"5%","Paranavaí","76.974.823/0001-80",119982,"Av. Manoel Ribas, 470, Centro","87.910-000","Freonizio Valente"]
["Santa Izabel do Oeste",0.76791248451635352,"10%","Francisco Beltrão","76.205.715/0001-42",119983,"R. Acácia, 1317, Centro","85.650-000","Jean Pierr Catto"]
["Santa Lúcia",0.70819687106767903,"10%","Cascavel","95.594.776/0001-93",119984,"Av. do Rosário, 228, Centro","85.795-000","Renato Tonidandel"]
["Santa Maria do Oeste",0.62186570449173262,"5%","Pitanga","95.684.544/0001-26",119985,"R. José de França Pereira, 10","85.230-000","Oscar Delgado"]
["Santa Mariana",0.70446766198310351,"10%","Cornélio Procópio","75.392.019/0001-20",119986,"R. Antonio Manoel dos Santos, 151","86.350-000","Jose Marcelo Piovan Guimaraes"]
["Santa Mônica",0.6234447450577294,"5%","Paranavaí","95.641.916/0001-37",119987,"R. Marieta Mocellin, 588","87.915-000","Luan Gustavo Frazatto"]
["Santana do Itararé",0.75721750376646879,"10%","Jacarezinho","76.920.826/0001-30",119988,"Praça Frei Mathias de Gênova, 184, Centro","84.970-000","Jose de Jesuz Izac"]
["Santa Tereza do Oeste",0.70861078705766556,"10%","Cascavel","80.882.095/0001-53",119989,"Av. Paraná, 61","85.825-000","Elio Marciniak"]
["Santa Terezinha de Itaipu",0.72036073713770554,"10%","Cascavel","75.425.314/0001-35",119990,"R. João Xxiii, 144, Centro","85.875-000","Karla Francieli Galende"]
["Santo Antônio da Platina",0.66606722562011067,"5%","Jacarezinho","76.968.627/0001-00",119991,"Praça Nossa Senhora Aparecida, S/N, Centro","86.430-000","José da Silva Coelho Neto"]
["Santo Antônio do Caiuá",0.68755480302524408,"5%","Paranavaí","75.483.230/0001-58",119992,"Av. São João, 415","87.730-000","José Gabriel Gonçalves Fachiano"]
["Santo Antônio do Paraíso",0.64447572424724142,"5%","Cornélio Procópio","75.832.170/0001-31",119993,"Av. Deputado Nilson Ribas, 886, Centro","86.315-000","Devanir Martinelli"]
["Santo Antônio do Sudoeste",0.76326652477540458,"10%","Francisco Beltrão","75.927.582/0001-55",122398,"Av. Brasil, 1431, Centro","85.710-000","Ricardo Antonio Ortina"]
["Santo Inácio",0.80751972735217448,"10%","Maringá","76.970.375/0001-46",214821,"R. Marcelino Alves de Alcântara, 133","86.650-000","Geny Violatto"]
["São Carlos do Ivaí",0.76383149817139273,"10%","Paranavaí","75.498.576/0001-20",122399,"Av. Ivaí, 890, Centro","87.770-000","Jose Luiz Santos"]
["São Jerônimo da Serra",0.59012085209094001,"5%","Cornélio Procópio","76.290.683/0001-20",119994,"Praça Coronel Deolindo, 151, Centro","86.270-000","Venicius Djalma Rosa"]
["São João",0.79281221099086319,"10%","Pato Branco","76.995.422/0001-06",122400,"Av. Xv de Novembro, 160","85.570-000","Clovis Mateus Cuccolotto"]
["São João do Caiuá",0.71702050052950617,"10%","Paranavaí","76.238.435/0001-30",122401,"R. Dom Pedro Ii, 800","87.740-000","Stefan Tome Pauka"]
["São João do Ivaí",0.75209703249041071,"10%","Ivaiporã","75.741.355/0001-30",122402,"Av. Curitiba, 563","86.930-000","Carla Suzi Emerenciano"]
["São João do Triunfo",0.67866799597890559,"5%","Ponta Grossa","75.193.516/0001-07",119995,"R. Tenente Coronel Carlos Souza, 312, Centro","84.150-000","Abimael do Valle"]
["São Jorge D'Oeste",0.79012189291619472,"10%","Dois Vizinhos","76.995.380/0001-03",119996,"Av. Iguaçu, 281","85.575-000","Leila Aparecida da Rocha"]
["São Jorge do Ivaí",0.70431117223730266,"10%","Maringá","76.282.649/0001-04",147918,"Praça Santa Cruz, 249, Centro","87.190-000","Agnaldo Carvalho Guimaraes"]
["São Jorge do Patrocínio",0.79523849765225618,"10%","Umuarama","77.870.475/0001-63",119997,"Av. Carlos Spanhol, 164, Centro","87.555-000","José Carlos Baraldi"]
["São José da Boa Vista",0.71296520786620832,"10%","Jacarezinho","76.920.818/0001-94",119998,"R. Reinaldo Martins Gonçalves, 85, Centro","84.980-000","José Lazaro Ferraz"]
["São José Das Palmeiras",0.71471386347892196,"10%","Toledo","77.819.605/0001-33",119999,"R. Marechal Castelo Branco, 979, Centro","85.898-000","Nelton Brum"]
["São José Dos Pinhais",0.79427669851585447,"10%","Curitiba","76.105.543/0001-35",120000,"R. Passos de Oliveira, 1101, Centro","83.030-720","Margarida Maria Singer"]
["São Manoel do Paraná",0.79731991454708651,"10%","Cianorte","80.909.617/0001-63",120001,"Praça Paraná, 50, Centro","87.215-000","Agnaldo Trevisan"]
["São Mateus do Sul",0.77020878911154378,"10%","União da Vitória","76.021.450/0001-22",147925,"R. Barão do Rio Branco, 431","83.900-000","Fernanda Garcia Sardanha"]
["São Miguel do Iguaçu",0.77584626590886374,"10%","Cascavel","76.206.499/0001-50",120002,"R. Vânio Ghellere, 64, Centro","85.877-000","Boaventura Manoel João Motta"]
["São Pedro do Iguaçu",0.69074034095849157,"5%","Toledo","95.583.597/0001-50",120003,"R. Niterói, 121, Centro","85.929-000","José Aroldo Malvestio"]
["São Pedro do Ivaí",0.70994685171108507,"10%","Ivaiporã","75.771.311/0001-53",120004,"Praça Padre José Rossi, 354, Centro","86.945-000","Maria Regina Della Rosa Magri"]
["São Pedro do Paraná",0.67964758432857664,"5%","Paranavaí","76.975.259/0001-10",120005,"Av. Paraná, 307","87.955-000","Neila de Fatima Luizão Fernandes"]
["São Sebastião da Amoreira",0.65359724958161358,"5%","Cornélio Procópio","76.290.659/0001-91",120006,"R. Papa João Xxii, 1086, Centro","86.240-000","Exilaine Gaspar"]
["São Tomé",0.75323814117504018,"10%","Cianorte","75.381.178/0001-29",122411,"Praça Professor Pedro Fecchio, 248, Centro","87.220-000","Ocelio Cesar Ferreira Leite"]
["Sapopema",0.69728188053779983,"5%","Cornélio Procópio","76.167.733/0001-87",120007,"Av. Manoel Ribas, 858, Centro","84.290-000","Paulo Maximiano de Souza Junior"]
["Sarandi",0.7192253825372007,"10%","Maringá","78.200.482/0001-10",120008,"R. José Emiliano de Gusmão, 565, Centro","87.111-230","Walter Volpato"]
["Saudade do Iguaçu",0.80608039691565814,"10%","Pato Branco","95.585.477/0001-92",120009,"R. Frei Vito Berscheid, 708, Centro","85.568-000","Darlei Trento"]
["Sengés",0.75379768165918304,"10%","Ponta Grossa","76.911.676/0001-07",120010,"Travesa Senador Souza Naves, 95, Centro","84.220-000","Nelson Ferreira Ramos"]
["Serranópolis do Iguaçu",0.69538030849783061,"5%","Cascavel","01.613.052/0001-04",131898,"Av. Santos Dumont, 2021","85.885-000","Ivo Roberti"]
["Sertaneja",0.78467152409264551,"10%","Cornélio Procópio","75.393.082/0001-80",120011,"Av. Nossa Senhora do Rocio, 233, Centro","86.340-000","Jamison Donizete da Silva"]
["Sertanópolis",0.75407456928419669,"10%","Londrina","76.245.034/0001-08",120012,"Av. Doutor Vacyr Gonçalves Pereira, 342, Centro","86.170-000","Ana Ruth Secco"]
["Siqueira Campos",0.78298949724711076,"10%","Jacarezinho","76.919.083/0001-89",147941,"R. Marechal Deodoro, 1837, Centro","84.940-000","Luiz Henrique Germano"]
["Sulina",0.7539592097175225,"10%","Pato Branco","80.869.886/0001-43",122403,"R. Tupinambá, 68, Centro","85.565-000","Paulo Horn"]
["Tamarana",0.65992118381913345,"5%","Londrina","01.613.167/0001-90",120013,"R. Izaltino José Silvestre, 643","86.125-000","Luzia Harue Suzukawa"]
["Tamboara",0.7669215704857274,"10%","Paranavaí","76.978.519/0001-00",120014,"Praça Isabel Marcos Beltrame, 2000, Centro","87.760-000","Antonio Carlos Cauneto"]
["Tapejara",0.75110904066017559,"10%","Cianorte","76.247.345/0001-06",147945,"Av. Tancredo Neves, 442, Centro","87.430-000","Rodrigo de Oliveira Souza Koike"]
["Tapira",0.72055307748862807,"10%","Umuarama","75.801.738/0001-57",120015,"R. Paranaguá, 518","87.830-000","Claudio Sidiney de Lima"]
["Teixeira Soares",0.71709069436452422,"10%","Irati","75.963.850/0001-94",122404,"Praça Xv de Novembro, 135, Centro","84.530-000","Lucinei Carlos Thomaz"]
["Telêmaco Borba",0.78057050200450095,"10%","Ponta Grossa","76.170.240/0001-04",147552,"Praça Doutor Horácio Klabin, 37, Centro","84.261-170","Márcio Artur de Matos"]
["Terra Boa",0.77338492697232442,"10%","Campo Mourão","75.793.786/0001-40",122332,"R. Presidente Tancredo de Almeida Neves, 240, Centro","87.240-000","Edmilson Pedro de Moura"]
["Terra Rica",0.74622689132736841,"10%","Paranavaí","76.978.881/0001-81",120016,"Av. Euclides da Cunha, 1120, Centro","87.890-000","Julio Cesar da Silva Leite"]
["Terra Roxa",0.77738058604637905,"10%","Toledo","75.587.204/0001-70",122405,"Av. Presidente Costa E Silva, 95, Centro","85.990-000","Ivan Reis da Silva"]
["Tibagi",0.71111147572593725,"10%","Ponta Grossa","76.170.257/0001-53",122406,"Praça Edmundo Mercer, 34, Centro","84.300-000","Artur Ricardo Nolte"]
["Tijucas do Sul",0.66059576171826395,"5%","Curitiba","76.105.584/0001-21",122407,"R. Xv de Novembro, 1438, Centro","83.190-000","José Altair Moreira"]
["Toledo",0.86180340931908894,"10%","Toledo","76.205.806/0001-88",120017,"R. Raimundo Leonardi, 1586","85.900-110","Luis Adalberto Beto Lunitti Pagnussatt"]
["Tomazina",0.71538669603166649,"10%","Jacarezinho","75.697.094/0001-07",132301,"Praça João José Ribeiro, 99","84.935-000","Flávio Xavier de Lima Zanrosso"]
["Três Barras do Paraná",0.74495020765479458,"10%","Cascavel","78.121.936/0001-68",120018,"Av. Brasil, 245","85.485-000","Gerso Francisco Gusso"]
["Tunas do Paraná",0.6271059205215076,"5%","Curitiba","68.703.834/0001-05",132267,"R. Eros Ruppel Abdalla, 189","83.480-000","Marco Antonio Baldão"]
["Tuneiras do Oeste",0.6905621046857201,"5%","Cianorte","76.247.329/0001-13",147958,"R. Santa Catarina, 409, Centro","87.450-000","Taketoshi Sakurada"]
["Tupãssi",0.76438951113006459,"10%","Toledo","77.877.116/0001-38",120019,"Praça Santos Dumont, S/N, Centro","85.945-000","Luiz Carlos Beletti"]
["Turvo",0.735314215831815,"10%","Guarapuava","78.279.973/0001-07",120020,"Av. Doze de Maio, 353, Centro","85.150-000","Jeronimo Gadens do Rosario"]
["Ubiratã",0.82707096140746972,"10%","Campo Mourão","76.950.096/0001-10",120021,"Av. Nilza de Oliveira Pipino, 1852, Centro","85.440-000","Fabio de Oliveira Dalecio"]
["Umuarama",0.78666256511707955,"10%","Umuarama","76.247.378/0001-56",122408,"Av. Rio Branco, 3717","87.501-130","Celso Luiz Pozzobom"]
["União da Vitória",0.77708945374211957,"10%","União da Vitória","75.967.760/0001-71",120022,"R. Cruz Machado, 205","84.600-000","Bachir Abbas"]
["Uniflor",0.69460082362737896,"5%","Maringá","76.279.975/0001-62",147964,"Av. Das Flores, 118","87.640-000","José Bassi Neto"]
["Uraí",0.69963578601231313,"5%","Cornélio Procópio","75.424.507/0001-71",132280,"R. Rio de Janeiro, 496","86.280-000","Angelo Tarantini Filho"]
["Ventania",0.65786953108439283,"5%","Ponta Grossa","95.685.798/0001-69",147965,"Av. Anacleto Bueno de Camargo, 825, Centro","84.345-000","José Luiz Bittencourt"]
["Vera Cruz do Oeste",0.74656902434568251,"10%","Cascavel","78.101.821/0001-01",120023,"R. Rui Barbosa, 202, Centro","85.845-000","Ahmad Issa"]
["Verê",0.77790572287641713,"10%","Francisco Beltrão","75.636.530/0001-20",120024,"R. Pioneiro Antônio Fabiane, 316, Centro","85.585-000","Ademilso Rosin"]
["Virmond",0.74795705600717666,"10%","Laranjeiras Do Sul","95.587.622/0001-74",120025,"R. Xv de Novembro, 608, Centro","85.390-000","Neimar Granoski"]
["Vitorino",0.73632304869532883,"10%","Pato Branco","76.995.463/0001-00",120034,"R. Barão de Capanema, 134, Centro","85.520-000","Marciano Vottri"]
["Wenceslau Braz",0.7714854319993707,"10%","Jacarezinho","76.920.800/0001-92",120026,"R. Barão do Rio Branco , 271, Centro","84.950-000","Atahyde Ferreira dos Santos Junior"]
["Xambrê",0.64836173301795419,"5%","Umuarama","76.247.360/0001-54",120027,"Av. Roque Gonzales, 480, Centro","87.535-000","Decio Jardim"]
["https://www.ipardes.pr.gov.br/Pagina/Indice-Ipardes-de-Desempenho-Municipal"]